Workbook

Sheet Front Sheet
F7: Gas Network Innovation Competition Full Submission
F8: Spreadsheet
F10: (2019 version 1.0)
F11: Appendix A
C15: Licensee Name: | D15: Northern Gas Networks
C17: Submission Date: | D17: 2019-07-29
B21: Input cells
B22: Totals cells (of formula within worksheet)
B23: Referencing to other worksheets
B24: Check cells
B25: No Input
B26: Descriptions and pack data
B27: Ofgem Input cells

Sheet NIC Funding Request
A1: NIC Funding Request
C2: 2019/20 | D2: 2020/21 | E2: 2021/22 | F2: 2022/23 | G2: 2023/24 | H2: 2024/25 | I2: 2025/26 | J2: 2026/27 | K2: Total
A3: Total Project Cost | B3: From Project Cost Summary sheet
B4: Labour | C4: ='Project Cost Summary'!C18 -> 103324 | D4: ='Project Cost Summary'!C31 -> 775504.8 | E4: ='Project Cost Summary'!C44 -> 830468 | F4: ='Project Cost Summary'!C57 -> 0 | G4: ='Project Cost Summary'!C70 -> 0 | H4: ='Project Cost Summary'!D70 -> 0 | I4: ='Project Cost Summary'!E70 -> 0 | J4: ='Project Cost Summary'!F70 -> 0 | K4: =SUM(C4:J4) -> 1709296.8
B5: Equipment | C5: ='Project Cost Summary'!D18 -> 28000 | D5: ='Project Cost Summary'!D31 -> 3012867.063 | E5: ='Project Cost Summary'!D44 -> 582301.5873 | F5: ='Project Cost Summary'!D57 -> 0 | G5: ='Project Cost Summary'!D70 -> 0 | H5: ='Project Cost Summary'!E70 -> 0 | I5: ='Project Cost Summary'!F70 -> 0 | J5: ='Project Cost Summary'!G70 -> 0 | K5: =SUM(C5:J5) -> 3623168.651
B6: Contractors | C6: ='Project Cost Summary'!E18 -> 145308.9 | D6: ='Project Cost Summary'!E31 -> 1563304.5 | E6: ='Project Cost Summary'!E44 -> 581333.3 | F6: ='Project Cost Summary'!E57 -> 0 | G6: ='Project Cost Summary'!E70 -> 0 | H6: ='Project Cost Summary'!F70 -> 0 | I6: ='Project Cost Summary'!G70 -> 0 | J6: ='Project Cost Summary'!H70 -> 0 | K6: 2289946.7
B7: IT | C7: ='Project Cost Summary'!F18 -> 3750 | D7: ='Project Cost Summary'!F31 -> 15000 | E7: ='Project Cost Summary'!F44 -> 11250 | F7: ='Project Cost Summary'!F57 -> 0 | G7: ='Project Cost Summary'!F70 -> 0 | H7: ='Project Cost Summary'!G70 -> 0 | I7: ='Project Cost Summary'!H70 -> 0 | J7: ='Project Cost Summary'!I70 -> 0 | K7: 30000
B8: IPR Costs | C8: ='Project Cost Summary'!G18 -> 0 | D8: ='Project Cost Summary'!G31 -> 0 | E8: ='Project Cost Summary'!G44 -> 0 | F8: ='Project Cost Summary'!G57 -> 0 | G8: ='Project Cost Summary'!G70 -> 0 | H8: ='Project Cost Summary'!H70 -> 0 | I8: ='Project Cost Summary'!I70 -> 0 | J8: ='Project Cost Summary'!J70 -> 0 | K8: 0
B9: Travel & Expenses | C9: ='Project Cost Summary'!H18 -> 0 | D9: ='Project Cost Summary'!H31 -> 0 | E9: ='Project Cost Summary'!H44 -> 0 | F9: ='Project Cost Summary'!H57 -> 0 | G9: ='Project Cost Summary'!H70 -> 0 | H9: ='Project Cost Summary'!I70 -> 0 | I9: ='Project Cost Summary'!J70 -> 0 | J9: ='Project Cost Summary'!K70 -> 0 | K9: 0
A10: Payments to users & Contingency | C10: ='Project Cost Summary'!I18+'Project Cost Summary'!J18 -> 10119.1 | D10: ='Project Cost Summary'!I31+'Project Cost Summary'!J31 -> 120758.6492 | E10: ='Project Cost Summary'!I44+'Project Cost Summary'!J44 -> 55557.7 | F10: ='Project Cost Summary'!I57+'Project Cost Summary'!J57 -> 0 | G10: ='Project Cost Summary'!I70+'Project Cost Summary'!J70 -> 0 | H10: ='Project Cost Summary'!J70+'Project Cost Summary'!K70 -> 0 | I10: ='Project Cost Summary'!K70+'Project Cost Summary'!L70 -> 0 | J10: ='Project Cost Summary'!L70+'Project Cost Summary'!M70 -> 0 | K10: 186435.4492
B11: Decommissioning | C11: ='Project Cost Summary'!K18 -> 0 | D11: ='Project Cost Summary'!K31 -> 0 | E11: ='Project Cost Summary'!K44 -> 0 | F11: ='Project Cost Summary'!K57 -> 0 | G11: ='Project Cost Summary'!K70 -> 0 | H11: ='Project Cost Summary'!L70 -> 0 | I11: ='Project Cost Summary'!M70 -> 0 | J11: ='Project Cost Summary'!N70 -> 0 | K11: 0
B12: Other | C12: ='Project Cost Summary'!L18 -> 0 | D12: ='Project Cost Summary'!L31 -> 0 | E12: ='Project Cost Summary'!L44 -> 0 | F12: ='Project Cost Summary'!L57 -> 0 | G12: ='Project Cost Summary'!L70 -> 0 | H12: ='Project Cost Summary'!M70 -> 0 | I12: ='Project Cost Summary'!N70 -> 0 | J12: ='Project Cost Summary'!O70 -> 0 | K12: 0
B13: Total | C13: =SUM(C4:C12) -> 290502 | D13: 5487435.013 | E13: 2060910.587 | F13: 0 | G13: 0 | H13: =SUM(H4:H12) -> 0 | I13: 0 | J13: 0 | K13: 7838847.6
A15: External funding | B15: Any funding that will be received from Project Partners and/or External Funders - from Project Cost Summary sheet
B16: Labour | C16: ='Project Cost Summary'!C22 -> 1596.096 | D16: ='Project Cost Summary'!C35 -> 20286.67392 | E16: ='Project Cost Summary'!C48 -> 32638.6944 | F16: ='Project Cost Summary'!C61 -> 0 | G16: ='Project Cost Summary'!C74 -> 0 | H16: ='Project Cost Summary'!D74 -> 0 | I16: ='Project Cost Summary'!E74 -> 0 | J16: ='Project Cost Summary'!F74 -> 0 | K16: =SUM(C16:J16) -> 54521.46432
B17: Equipment | C17: ='Project Cost Summary'!D22 -> 122.4 | D17: ='Project Cost Summary'!D35 -> 65761.2619 | E17: ='Project Cost Summary'!D48 -> 23757.90476 | F17: ='Project Cost Summary'!D61 -> 0 | G17: ='Project Cost Summary'!D74 -> 0 | H17: ='Project Cost Summary'!E74 -> 0 | I17: ='Project Cost Summary'!F74 -> 0 | J17: ='Project Cost Summary'!G74 -> 0 | K17: =SUM(C17:J17) -> 89641.56667
B18: Contractors | C18: ='Project Cost Summary'!E22 -> 4529.57112 | D18: ='Project Cost Summary'!E35 -> 51627.77328 | E18: ='Project Cost Summary'!E48 -> 17229.36264 | F18: ='Project Cost Summary'!E61 -> 0 | G18: ='Project Cost Summary'!E74 -> 0 | H18: ='Project Cost Summary'!F74 -> 0 | I18: ='Project Cost Summary'!G74 -> 0 | J18: ='Project Cost Summary'!H74 -> 0 | K18: 73386.70704
B19: IT | C19: ='Project Cost Summary'!F22 -> 76.5 | D19: ='Project Cost Summary'!F35 -> 306 | E19: ='Project Cost Summary'!F48 -> 459 | F19: ='Project Cost Summary'!F61 -> 0 | G19: ='Project Cost Summary'!F74 -> 0 | H19: ='Project Cost Summary'!G74 -> 0 | I19: ='Project Cost Summary'!H74 -> 0 | J19: ='Project Cost Summary'!I74 -> 0 | K19: 841.5
B20: IPR Costs | C20: ='Project Cost Summary'!G22 -> 0 | D20: ='Project Cost Summary'!G35 -> 0 | E20: ='Project Cost Summary'!G48 -> 0 | F20: ='Project Cost Summary'!G61 -> 0 | G20: ='Project Cost Summary'!G74 -> 0 | H20: ='Project Cost Summary'!H74 -> 0 | I20: ='Project Cost Summary'!I74 -> 0 | J20: ='Project Cost Summary'!J74 -> 0 | K20: 0
B21: Travel & Expenses | C21: ='Project Cost Summary'!H22 -> 0 | D21: ='Project Cost Summary'!H35 -> 0 | E21: ='Project Cost Summary'!H48 -> 0 | F21: ='Project Cost Summary'!H61 -> 0 | G21: ='Project Cost Summary'!H74 -> 0 | H21: ='Project Cost Summary'!I74 -> 0 | I21: ='Project Cost Summary'!J74 -> 0 | J21: ='Project Cost Summary'!K74 -> 0 | K21: 0
A22: Payments to users & Contingency | C22: ='Project Cost Summary'!I22+'Project Cost Summary'!J22 -> 304.90248 | D22: ='Project Cost Summary'!I35+'Project Cost Summary'!J35 -> 4306.397128 | E22: ='Project Cost Summary'!I48+'Project Cost Summary'!J48 -> 2266.75416 | F22: ='Project Cost Summary'!I61+'Project Cost Summary'!J61 -> 0 | G22: ='Project Cost Summary'!I74+'Project Cost Summary'!K74 -> 0 | H22: ='Project Cost Summary'!J74+'Project Cost Summary'!L74 -> 0 | I22: ='Project Cost Summary'!K74+'Project Cost Summary'!M74 -> 0 | J22: ='Project Cost Summary'!L74+'Project Cost Summary'!N74 -> 0 | K22: 6878.053768
B23: Decommissioning | C23: ='Project Cost Summary'!K22 -> 0 | D23: ='Project Cost Summary'!K35 -> 0 | E23: ='Project Cost Summary'!K48 -> 0 | F23: ='Project Cost Summary'!K61 -> 0 | G23: ='Project Cost Summary'!K74 -> 0 | H23: ='Project Cost Summary'!L74 -> 0 | I23: ='Project Cost Summary'!M74 -> 0 | J23: ='Project Cost Summary'!N74 -> 0 | K23: 0
B24: Other | C24: ='Project Cost Summary'!L22 -> 0 | D24: ='Project Cost Summary'!L35 -> 0 | E24: ='Project Cost Summary'!L48 -> 0 | F24: ='Project Cost Summary'!L61 -> 0 | G24: ='Project Cost Summary'!L74 -> 0 | H24: ='Project Cost Summary'!M74 -> 0 | I24: ='Project Cost Summary'!N74 -> 0 | J24: ='Project Cost Summary'!O74 -> 0 | K24: 0
B25: Total | C25: =SUM(C16:C24) -> 6629.4696 | D25: 142288.1062 | E25: 76351.71596 | F25: 0 | G25: 0 | H25: =SUM(H16:H24) -> 0 | I25: 0 | J25: 0 | K25: 225269.2918
A27: Licensee extra contribution | B27: Any funding from the Licensee which is in excess of the Licensee Compulsory Contribution - from Project Cost Summary sheet
B28: Labour | C28: ='Project Cost Summary'!C23 -> 0 | D28: ='Project Cost Summary'!C36 -> 0 | E28: ='Project Cost Summary'!C49 -> 0 | F28: ='Project Cost Summary'!C62 -> 0 | G28: ='Project Cost Summary'!C75 -> 0 | H28: ='Project Cost Summary'!D75 -> 0 | I28: ='Project Cost Summary'!E75 -> 0 | J28: ='Project Cost Summary'!F75 -> 0 | K28: =SUM(C28:J28) -> 0
B29: Equipment | C29: ='Project Cost Summary'!D23 -> 0 | D29: ='Project Cost Summary'!D36 -> 0 | E29: ='Project Cost Summary'!D49 -> 0 | F29: ='Project Cost Summary'!D62 -> 0 | G29: ='Project Cost Summary'!D75 -> 0 | H29: ='Project Cost Summary'!E75 -> 0 | I29: ='Project Cost Summary'!F75 -> 0 | J29: ='Project Cost Summary'!G75 -> 0 | K29: =SUM(C29:J29) -> 0
B30: Contractors | C30: ='Project Cost Summary'!E23 -> 0 | D30: ='Project Cost Summary'!E36 -> 0 | E30: ='Project Cost Summary'!E49 -> 0 | F30: ='Project Cost Summary'!E62 -> 0 | G30: ='Project Cost Summary'!E75 -> 0 | H30: ='Project Cost Summary'!F75 -> 0 | I30: ='Project Cost Summary'!G75 -> 0 | J30: ='Project Cost Summary'!H75 -> 0 | K30: 0
B31: IT | C31: ='Project Cost Summary'!F23 -> 0 | D31: ='Project Cost Summary'!F36 -> 0 | E31: ='Project Cost Summary'!F49 -> 0 | F31: ='Project Cost Summary'!F62 -> 0 | G31: ='Project Cost Summary'!E75 -> 0 | H31: ='Project Cost Summary'!F75 -> 0 | I31: ='Project Cost Summary'!G75 -> 0 | J31: ='Project Cost Summary'!H75 -> 0 | K31: 0
B32: IPR Costs | C32: ='Project Cost Summary'!G23 -> 0 | D32: ='Project Cost Summary'!G36 -> 0 | E32: ='Project Cost Summary'!G49 -> 0 | F32: ='Project Cost Summary'!G62 -> 0 | G32: ='Project Cost Summary'!F75 -> 0 | H32: ='Project Cost Summary'!G75 -> 0 | I32: ='Project Cost Summary'!H75 -> 0 | J32: ='Project Cost Summary'!I75 -> 0 | K32: 0
B33: Travel & Expenses | C33: ='Project Cost Summary'!H23 -> 0 | D33: ='Project Cost Summary'!H36 -> 0 | E33: ='Project Cost Summary'!H49 -> 0 | F33: ='Project Cost Summary'!H62 -> 0 | G33: ='Project Cost Summary'!G75 -> 0 | H33: ='Project Cost Summary'!H75 -> 0 | I33: ='Project Cost Summary'!I75 -> 0 | J33: ='Project Cost Summary'!J75 -> 0 | K33: 0
A34: Payments to users & Contingency | C34: ='Project Cost Summary'!I23+'Project Cost Summary'!J23 -> 0 | D34: ='Project Cost Summary'!I36+'Project Cost Summary'!J36 -> 0 | E34: ='Project Cost Summary'!I49+'Project Cost Summary'!J49 -> 0 | F34: ='Project Cost Summary'!I62 -> 0 | G34: ='Project Cost Summary'!I75+'Project Cost Summary'!J75 -> 0 | H34: ='Project Cost Summary'!J75+'Project Cost Summary'!K75 -> 0 | I34: ='Project Cost Summary'!K75+'Project Cost Summary'!L75 -> 0 | J34: ='Project Cost Summary'!L75+'Project Cost Summary'!M75 -> 0 | K34: 0
B35: Decommissioning | C35: ='Project Cost Summary'!K23 -> 0 | D35: ='Project Cost Summary'!K36 -> 0 | E35: ='Project Cost Summary'!K49 -> 0 | F35: ='Project Cost Summary'!K62 -> 0 | G35: ='Project Cost Summary'!K75 -> 0 | H35: ='Project Cost Summary'!L75 -> 0 | I35: ='Project Cost Summary'!M75 -> 0 | J35: ='Project Cost Summary'!N75 -> 0 | K35: 0
B36: Other | C36: ='Project Cost Summary'!L23 -> 0 | D36: ='Project Cost Summary'!L36 -> 0 | E36: ='Project Cost Summary'!L49 -> 0 | F36: ='Project Cost Summary'!L62 -> 0 | G36: ='Project Cost Summary'!L75 -> 0 | H36: ='Project Cost Summary'!M75 -> 0 | I36: ='Project Cost Summary'!N75 -> 0 | J36: ='Project Cost Summary'!O75 -> 0 | K36: 0
B37: Total | C37: =SUM(C28:C36) -> 0 | D37: 0 | E37: 0 | F37: 0 | G37: 0 | H37: =SUM(H28:H36) -> 0 | I37: 0 | J37: 0 | K37: 0
A39: Initial Net Funding Required
B40: Labour | C40: =C4-C16-C28 -> 101727.904 | D40: 755218.1261 | E40: 797829.3056 | F40: 0 | G40: 0 | H40: =H4-H16-H28 -> 0 | I40: 0 | J40: 0 | K40: =K4-K16-K28 -> 1654775.336
B41: Equipment | C41: =C5-C17-C29 -> 27877.6 | D41: 2947105.802 | E41: 558543.6825 | F41: 0 | G41: 0 | H41: =H5-H17-H29 -> 0 | I41: 0 | J41: 0 | K41: 3533527.084
B42: Contractors | C42: =C6-C18-C30 -> 140779.3289 | D42: 1511676.727 | E42: 564103.9374 | F42: 0 | G42: 0 | H42: =H6-H18-H30 -> 0 | I42: 0 | J42: 0 | K42: 2216559.993
B43: IT | C43: =C7-C19-C31 -> 3673.5 | D43: 14694 | E43: 10791 | F43: 0 | G43: 0 | H43: =H7-H19-H31 -> 0 | I43: 0 | J43: 0 | K43: 29158.5
B44: IPR Costs | C44: =C8-C20-C32 -> 0 | D44: 0 | E44: 0 | F44: 0 | G44: 0 | H44: =H8-H20-H32 -> 0 | I44: 0 | J44: 0 | K44: 0
B45: Travel & Expenses | C45: =C9-C21-C33 -> 0 | D45: 0 | E45: 0 | F45: 0 | G45: 0 | H45: =H9-H21-H33 -> 0 | I45: 0 | J45: 0 | K45: 0
A46: Payments to users & Contingency | C46: =C10-C22-C34 -> 9814.19752 | D46: 116452.2521 | E46: 53290.94584 | F46: 0 | G46: 0 | H46: =H10-H22-H34 -> 0 | I46: 0 | J46: 0 | K46: 179557.3954
B47: Decommissioning | C47: =C11-C23-C35 -> 0 | D47: 0 | E47: 0 | F47: 0 | G47: 0 | H47: =H11-H23-H35 -> 0 | I47: 0 | J47: 0 | K47: 0 | L47: Check Total = to Initial Net Funding request
B48: Other | C48: =C12-C24-C36 -> 0 | D48: 0 | E48: 0 | F48: 0 | G48: 0 | H48: =H12-H24-H36 -> 0 | I48: 0 | J48: 0 | K48: 0 | L48: in Project Cost Summary
B49: Total | C49: =C13-C25-C37 -> 283872.5304 | D49: 5345146.906 | E49: 1984558.871 | F49: 0 | G49: 0 | H49: =H13-H25-H37 -> 0 | I49: 0 | J49: 0 | K49: =K13-K25-K37 -> 7613578.308 | L49: =IF(K49='Project Cost Summary'!M11,"OK","ERROR") -> OK
A51: Direct Benefits | B51: from Direct Benefits sheet
B52: Total | C52: ='Direct Benefits'!D11 -> 0 | D52: ='Direct Benefits'!E11 -> 0 | E52: ='Direct Benefits'!F11 -> 0 | F52: ='Direct Benefits'!G11 -> 0 | G52: ='Direct Benefits'!K11 -> 0 | H52: ='Direct Benefits'!L11 -> 0 | I52: ='Direct Benefits'!M11 -> 0 | J52: ='Direct Benefits'!N11 -> 0 | K52: =SUM(C52:J52) -> 0
A56: Licensee Compulsory Contribution / Direct Benefits | C56: from Project Cost Summary sheet
B57: Labour | C57: ='Project Cost Summary'!C25 -> 10173.01385 | D57: ='Project Cost Summary'!C38 -> 75524.65274 | E57: ='Project Cost Summary'!C51 -> 79787.49998 | F57: ='Project Cost Summary'!C64 -> 0 | G57: ='Project Cost Summary'!C77 -> 0 | H57: ='Project Cost Summary'!D77 -> 0 | I57: ='Project Cost Summary'!E77 -> 0 | J57: ='Project Cost Summary'!F77 -> 0 | K57: =SUM(C57:J57) -> 165485.1666
B58: Equipment | C58: ='Project Cost Summary'!D25 -> 2787.777136 | D58: ='Project Cost Summary'!D38 -> 294719.7867 | E58: ='Project Cost Summary'!D51 -> 55857.69436 | F58: ='Project Cost Summary'!D64 -> 0 | G58: ='Project Cost Summary'!D77 -> 0 | H58: ='Project Cost Summary'!E77 -> 0 | I58: ='Project Cost Summary'!F77 -> 0 | J58: ='Project Cost Summary'!G77 -> 0 | K58: =SUM(C58:J58) -> 353365.2582
B59: Contractors | C59: ='Project Cost Summary'!E25 -> 14078.56703 | D59: ='Project Cost Summary'!E38 -> 151174.9006 | E59: ='Project Cost Summary'!E51 -> 56412.80585 | F59: ='Project Cost Summary'!E64 -> 0 | G59: ='Project Cost Summary'!E77 -> 0 | H59: ='Project Cost Summary'!F77 -> 0 | I59: ='Project Cost Summary'!G77 -> 0 | J59: ='Project Cost Summary'!H77 -> 0 | K59: 221666.2734
B60: IT | C60: ='Project Cost Summary'!F25 -> 367.36071 | D60: ='Project Cost Summary'!F38 -> 1469.44284 | E60: ='Project Cost Summary'!F51 -> 1079.16426 | F60: ='Project Cost Summary'!F64 -> 0 | G60: ='Project Cost Summary'!F77 -> 0 | H60: ='Project Cost Summary'!G77 -> 0 | I60: ='Project Cost Summary'!H77 -> 0 | J60: ='Project Cost Summary'!I77 -> 0 | K60: 2915.96781
B61: IPR Costs | C61: ='Project Cost Summary'!G25 -> 0 | D61: ='Project Cost Summary'!G38 -> 0 | E61: ='Project Cost Summary'!G51 -> 0 | F61: ='Project Cost Summary'!G64 -> 0 | G61: ='Project Cost Summary'!G77 -> 0 | H61: ='Project Cost Summary'!H77 -> 0 | I61: ='Project Cost Summary'!I77 -> 0 | J61: ='Project Cost Summary'!J77 -> 0 | K61: 0
B62: Travel & Expenses | C62: ='Project Cost Summary'!H25 -> 0 | D62: ='Project Cost Summary'!H38 -> 0 | E62: ='Project Cost Summary'!H51 -> 0 | F62: ='Project Cost Summary'!H64 -> 0 | G62: ='Project Cost Summary'!H77 -> 0 | H62: ='Project Cost Summary'!I77 -> 0 | I62: ='Project Cost Summary'!J77 -> 0 | J62: ='Project Cost Summary'!K77 -> 0 | K62: 0
A63: Payments to users & Contingency | C63: ='Project Cost Summary'!I25+'Project Cost Summary'!J25 -> 981.4624383 | D63: ='Project Cost Summary'!I38+'Project Cost Summary'!J38 -> 11645.8281 | E63: ='Project Cost Summary'!I51+'Project Cost Summary'!J51 -> 5329.41193 | F63: ='Project Cost Summary'!I64+'Project Cost Summary'!J64 -> 0 | G63: ='Project Cost Summary'!I77+'Project Cost Summary'!J77 -> 0 | H63: ='Project Cost Summary'!J77+'Project Cost Summary'!K77 -> 0 | I63: ='Project Cost Summary'!K77+'Project Cost Summary'!L77 -> 0 | J63: ='Project Cost Summary'!L77+'Project Cost Summary'!M77 -> 0 | K63: 17956.70247
B64: Decommissioning | C64: ='Project Cost Summary'!K25 -> 0 | D64: ='Project Cost Summary'!K38 -> 0 | E64: ='Project Cost Summary'!K51 -> 0 | F64: ='Project Cost Summary'!K64 -> 0 | G64: ='Project Cost Summary'!K77 -> 0 | H64: ='Project Cost Summary'!L77 -> 0 | I64: ='Project Cost Summary'!M77 -> 0 | J64: ='Project Cost Summary'!N77 -> 0 | K64: 0 | L64: of Total Initial Net Funding Required
B65: Other | C65: ='Project Cost Summary'!L25 -> 0 | D65: ='Project Cost Summary'!L38 -> 0 | E65: ='Project Cost Summary'!L51 -> 0 | F65: ='Project Cost Summary'!L64 -> 0 | G65: ='Project Cost Summary'!L77 -> 0 | H65: ='Project Cost Summary'!M77 -> 0 | I65: ='Project Cost Summary'!N77 -> 0 | J65: ='Project Cost Summary'!O77 -> 0 | K65: 0 | L65: =IF(K66>=K49*0.1,"OK","ERROR") -> OK
B66: Total | C66: =SUM(C57:C65) -> 28388.18117 | D66: 534534.611 | E66: 198466.5764 | F66: 0 | G66: 0 | H66: =SUM(H57:H65) -> 0 | I66: 0 | J66: 0 | K66: 761389.3685 | L66: Check that Total is = or > than
L67: Total Direct Benefits
L68: =IF(K66>=K52,"OK","ERROR") -> OK
A69: Outstanding Funding required
B70: Labour | C70: =C40-C57 -> 91554.89015 | D70: 679693.4733 | E70: 718041.8056 | F70: 0 | G70: =G40-G57 -> 0 | H70: 0 | I70: 0 | J70: 0 | K70: =SUM(C70:J70) -> 1489290.169
B71: Equipment | C71: 25089.82286 | D71: 2652386.015 | E71: 502685.9882 | F71: 0 | G71: 0 | H71: 0 | I71: 0 | J71: 0 | K71: =SUM(C71:J71) -> 3180161.826
B72: Contractors | C72: 126700.7619 | D72: 1360501.826 | E72: 507691.1315 | F72: 0 | G72: 0 | H72: 0 | I72: 0 | J72: 0 | K72: 1994893.72
B73: IT | C73: 3306.13929 | D73: 13224.55716 | E73: 9711.83574 | F73: 0 | G73: 0 | H73: 0 | I73: 0 | J73: 0 | K73: 26242.53219
B74: IPR Costs | C74: 0 | D74: 0 | E74: 0 | F74: 0 | G74: 0 | H74: 0 | I74: 0 | J74: 0 | K74: 0
B75: Travel & Expenses | C75: 0 | D75: 0 | E75: 0 | F75: 0 | G75: 0 | H75: 0 | I75: 0 | J75: 0 | K75: 0
A76: Payments to users & Contingency | C76: 8832.735082 | D76: 104806.424 | E76: 47961.53391 | F76: 0 | G76: 0 | H76: 0 | I76: 0 | J76: 0 | K76: 161600.693
B77: Decommissioning | C77: 0 | D77: 0 | E77: 0 | F77: 0 | G77: 0 | H77: 0 | I77: 0 | J77: 0 | K77: 0 | L77: Check that Total is =to
B78: Other | C78: 0 | D78: 0 | E78: 0 | F78: 0 | G78: 0 | H78: 0 | I78: 0 | J78: 0 | K78: 0 | L78: Total Outstanding Funding required
B79: Total | C79: =C49-C66 -> 255484.3492 | D79: 4810612.295 | E79: 1786092.295 | F79: 0 | G79: 0 | H79: 0 | I79: 0 | J79: 0 | K79: =SUM(C79:J79) -> 6852188.94 | L79: =IF(K79='Project Cost Summary'!M13, "OK","ERROR") -> ERROR
A81: balance | B81: 6800921.546 | C81: 0 | D81: =B81-C79-D79 -> 1734824.902 | E81: =D81-E79+D82 -> -8588.661006 | F81: 42.52019774 | G81: -0.2105062964 | H81: 0.001042160803 | I81: -5.159875476e-06 | J81: 2.51291599e-08 | K81: =B81 -> 6800921.546
A82: interest | C82: 0 | D82: =((B81+D81)/2)*$D86 -> 42678.73224 | E82: =((D81+E81)/2)*$D86 -> 8631.181204 | F82: =((E81+F81)/2)*$D86 -> -42.73070404 | G82: =((F81+G81)/2)*$D86 -> 0.2115484572 | H82: =((G81+H81)/2)*$D86 -> -0.001047320678 | I82: 5.185004636e-06 | J82: -2.567373158e-08 | K82: =SUM(D82:J82) -> 51267.39325
J83: =K79-K83 -> 0 | K83: =K81+K82 -> 6852188.94 | L83: =K79-K83 -> 0
B85: Bank of England interest rate | D85: 0.005 | G85: NIC FUNDING REQUEST £ | I85: =K81 -> 6800921.546
B86: interest rate used in calculation | D86: =D85+0.5% -> 0.01
B87: RPI adjustment | C87: 2019/20 | D87: 2020/21 | E87: 2021/22 | F87: 2022/23 | G87: 2023/24 | H87: 2024/25 | I87: 2025/26 | J87: 2026/27
B88: Annual inflation | C88: 0.0275 | D88: 0.032 | E88: 0.0318 | F88: 0.031 | G88: 0.031 | H88: 0.031 | I88: 0.031 | J88: 0.032
A89: n.b the NIC Funding Request calculation should use the Bank of England Base rate plus 0.5% on 30 June of the year in which the Full Submission is made.
D92: Bank of England Base Rate: https://www.bankofengland.co.uk/boeapps/iadb/Repo.asp
D93: RPI Forecast 2018/19-202223: https://www.gov.uk/government/statistics/forecasts-for-the-uk-economy-may-2018
D94: RPI for 2023/24 and thereafter is an extension from 2022/23 as no further consistent forecast is available.

Sheet Direct Benefits
A1: Direct Benefits
A3: Direct Benefit: Any benefits of the Project accruing to the Licensee during the Project Implementation, comprising any expenditure included within the Network Lincesee Business plan for RIIO-T1 or ED1 that will be saved as a result of undertaking the project
B7: Description of Direct Benefit
C8: 2018/19 | D8: 2019/20 | E8: 2020/21 | F8: 2021/22 | G8: 2022/23 | H8: 2023/24 | I8: 2024/25 | J8: 2025/26 | K8: 2026/27 | L8: Total
L9: =SUM(C9:K9) -> 0
L10: =SUM(C10:K10) -> 0
B11: Total Direct Benefits | C11: =SUM(C9:C10) -> 0 | D11: 0 | E11: 0 | F11: 0 | G11: 0 | H11: 0 | I11: 0 | J11: 0 | K11: 0 | L11: 0
B14: n.b. These are Direct Benefits associated with the Project itself, not the wider deployment of the Solution and therefore should not extend beyond the Project period.

Sheet Project Cost Summary
A1: Project Cost Summary
C2: Total
C3: Cost type
C4: Labour | D4: Equipment | E4: Contractors | F4: IT | G4: IPR Costs | H4: Travel & Expenses | I4: Payments to users | J4: Contingency | K4: Decommissioning | L4: Other | M4: Total
B5: Total Project Cost | C5: =SUM(C18+C31+C44+C57+C70+C83+C96+C109) -> 1709296.8 | D5: =SUM(D18+D31+D44+D57+D70+D83+D96+D109) -> 3623168.651 | E5: =SUM(E18+E31+E44+E57+E70+E83+E96+E109) -> 2289946.7 | F5: 30000 | G5: 0 | H5: 0 | I5: 0 | J5: 186435.4492 | K5: 0 | L5: 0 | M5: =SUM(C5:L5) -> 7838847.6
B6: Project Partner 1 | C6: =SUM(C19+C32+C45+C58+C71+C84+C97+C110) -> 54521.46432 | D6: 89641.56667 | E6: 73386.70704 | F6: 841.5 | G6: 0 | H6: 0 | I6: 0 | J6: 6878.053768 | K6: 0 | L6: 0 | M6: =SUM(C6:L6) -> 225269.2918
B7: Project Partner 2 | C7: =SUM(C20+C33+C46+C59+C72+C85+C98+C111) -> 0 | D7: 0 | E7: 0 | F7: 0 | G7: 0 | H7: 0 | I7: 0 | J7: 0 | K7: 0 | L7: 0 | M7: 0
B8: Project Partner 3 | C8: =SUM(C21+C34+C47+C60+C73+C86+C99+C112) -> 0 | D8: 0 | E8: 0 | F8: 0 | G8: 0 | H8: 0 | I8: 0 | J8: 0 | K8: 0 | L8: 0 | M8: 0
B9: External Funding | C9: =SUM(C22+C35+C48+C61+C74+C87+C100+C113) -> 54521.46432 | D9: 89641.56667 | E9: 73386.70704 | F9: 841.5 | G9: 0 | H9: 0 | I9: 0 | J9: 6878.053768 | K9: 0 | L9: 0 | M9: =SUM(C9:L9) -> 225269.2918
B10: Licensee extra contribution | C10: =SUM(C23+C36+C49+C62+C75+C88+C101+C114) -> 0 | D10: 0 | E10: 0 | F10: 0 | G10: 0 | H10: 0 | I10: 0 | J10: 0 | K10: 0 | L10: 0 | M10: 0
B11: Initial Net Funding Required | C11: =SUM(C24+C37+C50+C63+C76+C89+C102+C115) -> 1654775.336 | D11: 3533527.084 | E11: 2216559.993 | F11: 29158.5 | G11: 0 | H11: 0 | I11: 0 | J11: 179557.3954 | K11: 0 | L11: 0 | M11: 7613578.308 | O11: Check Total Initial Net Funding Required matches that on the Second Tier Funding Request tab
B12: Licensee Compulsory Contribution / Direct Benefits | C12: =SUM(C25+C38+C51+C64+C77+C90+C103+C116) -> 165485.1666 | D12: 353365.2582 | E12: 221666.2734 | F12: 2915.96781 | G12: 0 | H12: 0 | I12: 0 | J12: 17956.70247 | K12: 0 | L12: 0 | M12: 761389.3685 | O12: =IF(ABS(M11-'NIC Funding Request'!K49)<0.01,"OK","ERROR") -> OK
B13: Outstanding Funding Required | C13: 1508681.345 | D13: 3197567.19 | E13: 1999839.421 | F13: 26449.11432 | G13: 0 | H13: 0 | I13: 0 | J13: 162668.9587 | K13: 0 | L13: 0 | M13: =SUM(C13:L13) -> 6895206.03
C15: 2019/20
C16: Cost type
C17: Labour | D17: Equipment | E17: Contractors | F17: IT | G17: IPR Costs | H17: Travel & Expenses | I17: Payments to users | J17: Contingency | K17: Decommissioning | L17: Other | M17: Total
B18: Total Project Cost | C18: ='2019-2020'!G12 -> 103324 | D18: ='2019-2020'!H12 -> 28000 | E18: ='2019-2020'!I12 -> 145308.9 | F18: ='2019-2020'!J12 -> 3750 | G18: ='2019-2020'!K12 -> 0 | H18: ='2019-2020'!L12 -> 0 | I18: ='2019-2020'!M12 -> 0 | J18: ='2019-2020'!N12 -> 10119.1 | K18: ='2019-2020'!O12 -> 0 | L18: ='2019-2020'!P12 -> 0 | M18: =SUM(C18:L18) -> 290502
B19: Project Partner 1 | C19: ='2019-2020'!AK12 -> 1596.096 | D19: ='2019-2020'!AL12 -> 122.4 | E19: ='2019-2020'!AM12 -> 4529.57112 | F19: ='2019-2020'!AN12 -> 76.5 | G19: ='2019-2020'!AO12 -> 0 | H19: ='2019-2020'!AP12 -> 0 | I19: ='2019-2020'!AQ12 -> 0 | J19: ='2019-2020'!AR12 -> 304.90248 | K19: ='2019-2020'!AS12 -> 0 | L19: ='2019-2020'!AT12 -> 0 | M19: 6629.4696
B20: Project Partner 2 | C20: ='2019-2020'!AV12 -> 0 | D20: ='2019-2020'!AW12 -> 0 | E20: ='2019-2020'!AX12 -> 0 | F20: ='2019-2020'!AY12 -> 0 | G20: ='2019-2020'!AZ12 -> 0 | H20: ='2019-2020'!BA12 -> 0 | I20: ='2019-2020'!BB12 -> 0 | J20: ='2019-2020'!BC12 -> 0 | K20: ='2019-2020'!BD12 -> 0 | L20: ='2019-2020'!BE12 -> 0 | M20: 0
B21: Project Partner 3 | C21: ='2019-2020'!BG12 -> 0 | D21: ='2019-2020'!BH12 -> 0 | E21: ='2019-2020'!BI12 -> 0 | F21: ='2019-2020'!BJ12 -> 0 | G21: ='2019-2020'!BK12 -> 0 | H21: ='2019-2020'!BL12 -> 0 | I21: ='2019-2020'!BM12 -> 0 | J21: ='2019-2020'!BN12 -> 0 | K21: ='2019-2020'!BO12 -> 0 | L21: ='2019-2020'!BP12 -> 0 | M21: 0
B22: External Funding | C22: =SUM(C19:C21) -> 1596.096 | D22: 122.4 | E22: 4529.57112 | F22: 76.5 | G22: 0 | H22: 0 | I22: 0 | J22: 304.90248 | K22: 0 | L22: 0 | M22: 6629.4696
B23: Licensee extra contribution | C23: ='2019-2020'!BR12 -> 0 | D23: ='2019-2020'!BS12 -> 0 | E23: ='2019-2020'!BT12 -> 0 | F23: ='2019-2020'!BU12 -> 0 | G23: ='2019-2020'!BV12 -> 0 | H23: ='2019-2020'!BW12 -> 0 | I23: ='2019-2020'!BX12 -> 0 | J23: ='2019-2020'!BY12 -> 0 | K23: ='2019-2020'!BZ12 -> 0 | L23: ='2019-2020'!CA12 -> 0 | M23: 0
B24: Initial Net Funding Required | C24: =C18-C22-C23 -> 101727.904 | D24: =D18-D22-D23 -> 27877.6 | E24: 140779.3289 | F24: 3673.5 | G24: 0 | H24: 0 | I24: 0 | J24: 9814.19752 | K24: 0 | L24: 0 | M24: 283872.5304
B25: Licensee Compulsory Contribution / Direct Benefits | C25: ='2019-2020'!Z12 -> 10173.01385 | D25: ='2019-2020'!AA12 -> 2787.777136 | E25: ='2019-2020'!AB12 -> 14078.56703 | F25: ='2019-2020'!AC12 -> 367.36071 | G25: ='2019-2020'!AD12 -> 0 | H25: ='2019-2020'!AE12 -> 0 | I25: ='2019-2020'!AF12 -> 0 | J25: ='2019-2020'!AG12 -> 981.4624383 | K25: ='2019-2020'!AH12 -> 0 | L25: ='2019-2020'!AI12 -> 0 | M25: 28388.18117
B26: Outstanding Funding Required | C26: ='2019-2020'!CC12 -> 91554.89015 | D26: ='2019-2020'!CD12 -> 25089.82286 | E26: ='2019-2020'!CE12 -> 126700.7619 | F26: ='2019-2020'!CF12 -> 3306.13929 | G26: ='2019-2020'!CG12 -> 0 | H26: ='2019-2020'!CH12 -> 0 | I26: ='2019-2020'!CI12 -> 0 | J26: ='2019-2020'!CJ12 -> 8832.735082 | K26: ='2019-2020'!CK12 -> 0 | L26: ='2019-2020'!CL12 -> 0 | M26: 255484.3492
C28: 2020/21
C29: Cost type
C30: Labour | D30: Equipment | E30: Contractors | F30: IT | G30: IPR Costs | H30: Travel & Expenses | I30: Payments to users | J30: Contingency | K30: Decommissioning | L30: Other | M30: Total
B31: Total Project Cost | C31: ='2020-2021'!G11 -> 775504.8 | D31: ='2020-2021'!H11 -> 3012867.063 | E31: ='2020-2021'!I11 -> 1563304.5 | F31: ='2020-2021'!J11 -> 15000 | G31: ='2020-2021'!K11 -> 0 | H31: ='2020-2021'!L11 -> 0 | I31: ='2020-2021'!M11 -> 0 | J31: ='2020-2021'!N11 -> 120758.6492 | K31: ='2020-2021'!O11 -> 0 | L31: ='2020-2021'!P11 -> 0 | M31: =SUM(C31:L31) -> 5487435.013
B32: Project Partner 1 | C32: ='2020-2021'!AK11 -> 20286.67392 | D32: ='2020-2021'!AL11 -> 65761.2619 | E32: ='2020-2021'!AM11 -> 51627.77328 | F32: ='2020-2021'!AN11 -> 306 | G32: ='2020-2021'!AO11 -> 0 | H32: ='2020-2021'!AP11 -> 0 | I32: ='2020-2021'!AQ11 -> 0 | J32: ='2020-2021'!AR11 -> 4306.397128 | K32: ='2020-2021'!AS11 -> 0 | L32: ='2020-2021'!AT11 -> 0 | M32: 142288.1062
B33: Project Partner 2 | C33: ='2020-2021'!AV11 -> 0 | D33: ='2020-2021'!AW11 -> 0 | E33: ='2020-2021'!AX11 -> 0 | F33: ='2020-2021'!AY11 -> 0 | G33: ='2020-2021'!AZ11 -> 0 | H33: ='2020-2021'!BA11 -> 0 | I33: ='2020-2021'!BB11 -> 0 | J33: ='2020-2021'!BC11 -> 0 | K33: ='2020-2021'!BD11 -> 0 | L33: ='2020-2021'!BE11 -> 0 | M33: 0
B34: Project Partner 3 | C34: ='2020-2021'!BG11 -> 0 | D34: ='2020-2021'!BH11 -> 0 | E34: ='2020-2021'!BI11 -> 0 | F34: ='2020-2021'!BJ11 -> 0 | G34: ='2020-2021'!BK11 -> 0 | H34: ='2020-2021'!BL11 -> 0 | I34: ='2020-2021'!BM11 -> 0 | J34: ='2020-2021'!BN11 -> 0 | K34: ='2020-2021'!BO11 -> 0 | L34: ='2020-2021'!BP11 -> 0 | M34: 0
B35: External Funding | C35: =SUM(C32:C34) -> 20286.67392 | D35: 65761.2619 | E35: 51627.77328 | F35: 306 | G35: 0 | H35: 0 | I35: 0 | J35: 4306.397128 | K35: 0 | L35: 0 | M35: 142288.1062
B36: Licensee extra contribution | C36: ='2020-2021'!BR11 -> 0 | D36: ='2020-2021'!BS11 -> 0 | E36: ='2020-2021'!BT11 -> 0 | F36: ='2020-2021'!BU11 -> 0 | G36: ='2020-2021'!BV11 -> 0 | H36: ='2020-2021'!BW11 -> 0 | I36: ='2020-2021'!BX11 -> 0 | J36: ='2020-2021'!BY11 -> 0 | K36: ='2020-2021'!BZ11 -> 0 | L36: ='2020-2021'!CA11 -> 0 | M36: 0
B37: Initial Net Funding Required | C37: =C31-C35-C36 -> 755218.1261 | D37: =D31-D35-D36 -> 2947105.802 | E37: 1511676.727 | F37: =F31-F35-F36 -> 14694 | G37: 0 | H37: 0 | I37: 0 | J37: 116452.2521 | K37: 0 | L37: 0 | M37: 5345146.906
B38: Licensee Compulsory Contribution / Direct Benefits | C38: ='2020-2021'!Z11 -> 75524.65274 | D38: ='2020-2021'!AA11 -> 294719.7867 | E38: ='2020-2021'!AB11 -> 151174.9006 | F38: ='2020-2021'!AC11 -> 1469.44284 | G38: ='2020-2021'!AD11 -> 0 | H38: ='2020-2021'!AE11 -> 0 | I38: ='2020-2021'!AF11 -> 0 | J38: ='2020-2021'!AG11 -> 11645.8281 | K38: ='2020-2021'!AH11 -> 0 | L38: ='2020-2021'!AI11 -> 0 | M38: 534534.611
B39: Outstanding Funding Required | C39: ='2020-2021'!CC11 -> 679693.4733 | D39: ='2020-2021'!CD11 -> 2652386.015 | E39: ='2020-2021'!CE11 -> 1360501.826 | F39: ='2020-2021'!CF11 -> 13224.55716 | G39: ='2020-2021'!CG11 -> 0 | H39: ='2020-2021'!CH11 -> 0 | I39: ='2020-2021'!CI11 -> 0 | J39: ='2020-2021'!CJ11 -> 104806.424 | K39: ='2020-2021'!CK11 -> 0 | L39: ='2020-2021'!CL11 -> 0 | M39: 4810612.295
C41: 2021/22
C42: Cost type
C43: Labour | D43: Equipment | E43: Contractors | F43: IT | G43: IPR Costs | H43: Travel & Expenses | I43: Payments to users | J43: Contingency | K43: Decommissioning | L43: Other | M43: Total
B44: Total Project Cost | C44: ='2021-2022'!G11 -> 830468 | D44: ='2021-2022'!H11 -> 582301.5873 | E44: ='2021-2022'!I11 -> 581333.3 | F44: ='2021-2022'!J11 -> 11250 | G44: ='2021-2022'!K11 -> 0 | H44: ='2021-2022'!L11 -> 0 | I44: ='2021-2022'!M11 -> 0 | J44: ='2021-2022'!N11 -> 55557.7 | K44: ='2021-2022'!O11 -> 0 | L44: ='2021-2022'!P11 -> 0 | M44: =SUM(C44:L44) -> 2060910.587
B45: Project Partner 1 | C45: ='2021-2022'!AK11 -> 32638.6944 | D45: ='2021-2022'!AL11 -> 23757.90476 | E45: ='2021-2022'!AM11 -> 17229.36264 | F45: ='2021-2022'!AN11 -> 459 | G45: ='2021-2022'!AO11 -> 0 | H45: ='2021-2022'!AP11 -> 0 | I45: ='2021-2022'!AQ11 -> 0 | J45: ='2021-2022'!AR11 -> 2266.75416 | K45: ='2021-2022'!AS11 -> 0 | L45: ='2021-2022'!AT11 -> 0 | M45: =SUM(C45:L45) -> 76351.71596
B46: Project Partner 2 | C46: ='2021-2022'!AV11 -> 0 | D46: ='2021-2022'!AW11 -> 0 | E46: ='2021-2022'!AX11 -> 0 | F46: ='2021-2022'!AY11 -> 0 | G46: ='2021-2022'!AZ11 -> 0 | H46: ='2021-2022'!BA11 -> 0 | I46: ='2021-2022'!BB11 -> 0 | J46: ='2021-2022'!BC11 -> 0 | K46: ='2021-2022'!BD11 -> 0 | L46: ='2021-2022'!BE11 -> 0 | M46: 0
B47: Project Partner 3 | C47: ='2021-2022'!BG11 -> 0 | D47: ='2021-2022'!BH11 -> 0 | E47: ='2021-2022'!BI11 -> 0 | F47: ='2021-2022'!BJ11 -> 0 | G47: ='2021-2022'!BK11 -> 0 | H47: ='2021-2022'!BL11 -> 0 | I47: ='2021-2022'!BM11 -> 0 | J47: ='2021-2022'!BN11 -> 0 | K47: ='2021-2022'!BO11 -> 0 | L47: ='2021-2022'!BP11 -> 0 | M47: =SUM(C47:L47) -> 0
B48: External Funding | C48: =SUM(C45:C47) -> 32638.6944 | D48: 23757.90476 | E48: 17229.36264 | F48: 459 | G48: 0 | H48: 0 | I48: 0 | J48: 2266.75416 | K48: 0 | L48: 0 | M48: 76351.71596
B49: Licensee extra contribution | C49: ='2021-2022'!BR11 -> 0 | D49: ='2021-2022'!BS11 -> 0 | E49: ='2021-2022'!BT11 -> 0 | F49: ='2021-2022'!BU11 -> 0 | G49: ='2021-2022'!BV11 -> 0 | H49: ='2021-2022'!BW11 -> 0 | I49: ='2021-2022'!BX11 -> 0 | J49: ='2021-2022'!BY11 -> 0 | K49: ='2021-2022'!BZ11 -> 0 | L49: ='2021-2022'!CA11 -> 0 | M49: 0
B50: Initial Net Funding Required | C50: =C44-C48-C49 -> 797829.3056 | D50: =D44-D48-D49 -> 558543.6825 | E50: 564103.9374 | F50: 10791 | G50: 0 | H50: 0 | I50: 0 | J50: 53290.94584 | K50: 0 | L50: 0 | M50: 1984558.871
B51: Licensee Compulsory Contribution / Direct Benefits | C51: ='2021-2022'!Z11 -> 79787.49998 | D51: ='2021-2022'!AA11 -> 55857.69436 | E51: ='2021-2022'!AB11 -> 56412.80585 | F51: ='2021-2022'!AC11 -> 1079.16426 | G51: ='2021-2022'!AD11 -> 0 | H51: ='2021-2022'!AE11 -> 0 | I51: ='2021-2022'!AF11 -> 0 | J51: ='2021-2022'!AG11 -> 5329.41193 | K51: ='2021-2022'!AH11 -> 0 | L51: ='2021-2022'!AI11 -> 0 | M51: 198466.5764
B52: Outstanding Funding Required | C52: ='2021-2022'!CC11 -> 737432.9816 | D52: ='2021-2022'!CD11 -> 520091.3524 | E52: ='2021-2022'!CE11 -> 512636.8333 | F52: ='2021-2022'!CF11 -> 9918.41787 | G52: ='2021-2022'!CG11 -> 0 | H52: ='2021-2022'!CH11 -> 0 | I52: ='2021-2022'!CI11 -> 0 | J52: ='2021-2022'!CJ11 -> 49029.79967 | K52: ='2021-2022'!CK11 -> 0 | L52: ='2021-2022'!CL11 -> 0 | M52: =SUM(C52:L52) -> 1829109.385
C54: 2022/23
C55: Cost type
C56: Labour | D56: Equipment | E56: Contractors | F56: IT | G56: IPR Costs | H56: Travel & Expenses | I56: Payments to users | J56: Contingency | K56: Decommissioning | L56: Other | M56: Total
B57: Total Project Cost | C57: ='2022-2023'!G9 -> 0 | D57: ='2022-2023'!H9 -> 0 | E57: ='2022-2023'!I9 -> 0 | F57: ='2022-2023'!J9 -> 0 | G57: ='2022-2023'!K9 -> 0 | H57: ='2022-2023'!L9 -> 0 | I57: ='2022-2023'!M9 -> 0 | J57: ='2022-2023'!N9 -> 0 | K57: ='2022-2023'!O9 -> 0 | L57: ='2022-2023'!P9 -> 0 | M57: =SUM(C57:L57) -> 0
B58: Project Partner 1 | C58: ='2022-2023'!AK9 -> 0 | D58: ='2022-2023'!AL9 -> 0 | E58: ='2022-2023'!AM9 -> 0 | F58: ='2022-2023'!AN9 -> 0 | G58: ='2022-2023'!AO9 -> 0 | H58: ='2022-2023'!AP9 -> 0 | I58: ='2022-2023'!AQ9 -> 0 | J58: ='2022-2023'!AR9 -> 0 | K58: ='2022-2023'!AS9 -> 0 | L58: ='2022-2023'!AT9 -> 0 | M58: 0
B59: Project Partner 2 | C59: ='2022-2023'!AV9 -> 0 | D59: ='2022-2023'!AW9 -> 0 | E59: ='2022-2023'!AX9 -> 0 | F59: ='2022-2023'!AY9 -> 0 | G59: ='2022-2023'!AZ9 -> 0 | H59: ='2022-2023'!BA9 -> 0 | I59: ='2022-2023'!BB9 -> 0 | J59: ='2022-2023'!BC9 -> 0 | K59: ='2022-2023'!BD9 -> 0 | L59: ='2022-2023'!BE9 -> 0 | M59: 0
B60: Project Partner 3 | C60: ='2022-2023'!BG9 -> 0 | D60: ='2022-2023'!BH9 -> 0 | E60: ='2022-2023'!BI9 -> 0 | F60: ='2022-2023'!BJ9 -> 0 | G60: ='2022-2023'!BK9 -> 0 | H60: ='2022-2023'!BL9 -> 0 | I60: ='2022-2023'!BM9 -> 0 | J60: ='2022-2023'!BN9 -> 0 | K60: ='2022-2023'!BO9 -> 0 | L60: ='2022-2023'!BP9 -> 0 | M60: 0
B61: External Funding | C61: =SUM(C58:C60) -> 0 | D61: 0 | E61: 0 | F61: 0 | G61: 0 | H61: 0 | I61: 0 | J61: 0 | K61: 0 | L61: 0 | M61: 0
B62: Licensee extra contribution | C62: ='2022-2023'!BR9 -> 0 | D62: ='2022-2023'!BS9 -> 0 | E62: ='2022-2023'!BT9 -> 0 | F62: ='2022-2023'!BU9 -> 0 | G62: ='2022-2023'!BV9 -> 0 | H62: ='2022-2023'!BW9 -> 0 | I62: ='2022-2023'!BX9 -> 0 | J62: ='2022-2023'!BY9 -> 0 | K62: ='2022-2023'!BZ9 -> 0 | L62: ='2022-2023'!CA9 -> 0 | M62: 0
B63: Initial Net Funding Required | C63: =C57-C61-C62 -> 0 | D63: =D57-D61-D62 -> 0 | E63: 0 | F63: 0 | G63: 0 | H63: 0 | I63: 0 | J63: 0 | K63: 0 | L63: 0 | M63: 0
B64: Licensee Compulsory Contribution | C64: ='2022-2023'!Z9 -> 0 | D64: ='2022-2023'!AA9 -> 0 | E64: ='2022-2023'!AB9 -> 0 | F64: ='2022-2023'!AC9 -> 0 | G64: ='2022-2023'!AD9 -> 0 | H64: ='2022-2023'!AE9 -> 0 | I64: ='2022-2023'!AF9 -> 0 | J64: ='2022-2023'!AG9 -> 0 | K64: ='2022-2023'!AH9 -> 0 | L64: ='2022-2023'!AI9 -> 0 | M64: 0
B65: Outstanding Funding Required | C65: ='2022-2023'!CC9 -> 0 | D65: ='2022-2023'!CD9 -> 0 | E65: ='2022-2023'!CE9 -> 0 | F65: ='2022-2023'!CF9 -> 0 | G65: ='2022-2023'!CG9 -> 0 | H65: ='2022-2023'!CH9 -> 0 | I65: ='2022-2023'!CI9 -> 0 | J65: ='2022-2023'!CJ9 -> 0 | K65: ='2022-2023'!CK9 -> 0 | L65: ='2022-2023'!CL9 -> 0 | M65: 0
C67: 2023/24
C68: Cost type
C69: Labour | D69: Equipment | E69: Contractors | F69: IT | G69: IPR Costs | H69: Travel & Expenses | I69: Payments to users | J69: Contingency | K69: Decommissioning | L69: Other | M69: Total
B70: Total Project Cost | C70: ='2023-2024'!G9 -> 0 | D70: ='2023-2024'!H9 -> 0 | E70: ='2023-2024'!I9 -> 0 | F70: ='2023-2024'!J9 -> 0 | G70: ='2023-2024'!K9 -> 0 | H70: ='2023-2024'!L9 -> 0 | I70: ='2023-2024'!M9 -> 0 | J70: ='2023-2024'!N9 -> 0 | K70: ='2023-2024'!O9 -> 0 | L70: ='2023-2024'!P9 -> 0 | M70: =SUM(C70:L70) -> 0
B71: Project Partner 1 | C71: ='2023-2024'!AK9 -> 0 | D71: ='2023-2024'!AL9 -> 0 | E71: ='2023-2024'!AM9 -> 0 | F71: ='2023-2024'!AN9 -> 0 | G71: ='2023-2024'!AO9 -> 0 | H71: ='2023-2024'!AP9 -> 0 | I71: ='2023-2024'!AQ9 -> 0 | J71: ='2023-2024'!AR9 -> 0 | K71: ='2023-2024'!AS9 -> 0 | L71: ='2023-2024'!AT9 -> 0 | M71: 0
B72: Project Partner 2 | C72: ='2023-2024'!AV9 -> 0 | D72: ='2023-2024'!AW9 -> 0 | E72: ='2023-2024'!AX9 -> 0 | F72: ='2023-2024'!AY9 -> 0 | G72: ='2023-2024'!AZ9 -> 0 | H72: ='2023-2024'!BA9 -> 0 | I72: ='2023-2024'!BB9 -> 0 | J72: ='2023-2024'!BC9 -> 0 | K72: ='2023-2024'!BD9 -> 0 | L72: ='2023-2024'!BE9 -> 0 | M72: 0
B73: Project Partner 3 | C73: ='2023-2024'!BG9 -> 0 | D73: ='2022-2023'!BH22 -> 0 | E73: ='2022-2023'!BI22 -> 0 | F73: ='2022-2023'!BJ22 -> 0 | G73: ='2022-2023'!BK22 -> 0 | H73: ='2022-2023'!BL22 -> 0 | I73: ='2022-2023'!BM22 -> 0 | J73: ='2022-2023'!BN22 -> 0 | K73: ='2022-2023'!BO22 -> 0 | L73: ='2022-2023'!BP22 -> 0 | M73: 0
B74: External Funding | C74: =SUM(C71:C73) -> 0 | D74: 0 | E74: 0 | F74: 0 | G74: 0 | H74: 0 | I74: 0 | J74: 0 | K74: 0 | L74: =SUM(L71:L73) -> 0 | M74: 0
B75: Licensee extra contribution | C75: ='2023-2024'!BR9 -> 0 | D75: ='2023-2024'!BS9 -> 0 | E75: ='2023-2024'!BT9 -> 0 | F75: ='2023-2024'!BU9 -> 0 | G75: ='2023-2024'!BV9 -> 0 | H75: ='2023-2024'!BW9 -> 0 | I75: ='2023-2024'!BX9 -> 0 | J75: ='2023-2024'!BY9 -> 0 | K75: ='2023-2024'!BZ9 -> 0 | L75: ='2023-2024'!CA9 -> 0 | M75: 0
B76: Initial Net Funding Required | C76: =C70-C74-C75 -> 0 | D76: =D70-D74-D75 -> 0 | E76: 0 | F76: 0 | G76: 0 | H76: 0 | I76: 0 | J76: 0 | K76: 0 | L76: 0 | M76: 0
B77: Licensee Compulsory Contribution | C77: ='2023-2024'!Z9 -> 0 | D77: ='2023-2024'!AA9 -> 0 | E77: ='2023-2024'!AB9 -> 0 | F77: ='2023-2024'!AC9 -> 0 | G77: ='2023-2024'!AD9 -> 0 | H77: ='2023-2024'!AE9 -> 0 | I77: ='2023-2024'!AF9 -> 0 | J77: ='2023-2024'!AG9 -> 0 | K77: ='2023-2024'!AH9 -> 0 | L77: ='2023-2024'!AI9 -> 0 | M77: 0
B78: Outstanding Funding Required | C78: ='2023-2024'!CC9 -> 0 | D78: ='2023-2024'!CD9 -> 0 | E78: ='2023-2024'!CE9 -> 0 | F78: ='2023-2024'!CF9 -> 0 | G78: ='2023-2024'!CG9 -> 0 | H78: ='2023-2024'!CH9 -> 0 | I78: ='2023-2024'!CI9 -> 0 | J78: ='2023-2024'!CJ9 -> 0 | K78: ='2023-2024'!CK9 -> 0 | L78: ='2023-2024'!CL9 -> 0 | M78: 0
C80: 2024/25
C81: Cost type
C82: Labour | D82: Equipment | E82: Contractors | F82: IT | G82: IPR Costs | H82: Travel & Expenses | I82: Payments to users | J82: Contingency | K82: Decommissioning | L82: Other | M82: Total
B83: Total Project Cost | C83: ='2024-2025'!G9 -> 0 | D83: ='2024-2025'!H9 -> 0 | E83: ='2024-2025'!I9 -> 0 | F83: ='2024-2025'!J9 -> 0 | G83: ='2024-2025'!K9 -> 0 | H83: ='2024-2025'!L9 -> 0 | I83: ='2024-2025'!M9 -> 0 | J83: ='2024-2025'!N9 -> 0 | K83: ='2024-2025'!O9 -> 0 | L83: ='2024-2025'!P9 -> 0 | M83: =SUM(C83:L83) -> 0
B84: Project Partner 1 | C84: ='2024-2025'!AK9 -> 0 | D84: ='2024-2025'!AL9 -> 0 | E84: ='2024-2025'!AM9 -> 0 | F84: ='2024-2025'!AN9 -> 0 | G84: ='2024-2025'!AO9 -> 0 | H84: ='2024-2025'!AP9 -> 0 | I84: ='2024-2025'!AQ9 -> 0 | J84: ='2024-2025'!AR9 -> 0 | K84: ='2024-2025'!AS9 -> 0 | L84: ='2024-2025'!AT9 -> 0 | M84: 0
B85: Project Partner 2 | C85: ='2024-2025'!AV9 -> 0 | D85: ='2024-2025'!AW9 -> 0 | E85: ='2024-2025'!AX9 -> 0 | F85: ='2024-2025'!AY9 -> 0 | G85: ='2024-2025'!AZ9 -> 0 | H85: ='2024-2025'!BA9 -> 0 | I85: ='2024-2025'!BB9 -> 0 | J85: ='2024-2025'!BC9 -> 0 | K85: ='2024-2025'!BD9 -> 0 | L85: ='2024-2025'!BE9 -> 0 | M85: 0
B86: Project Partner 3 | C86: ='2024-2025'!BG9 -> 0 | D86: ='2024-2025'!BH35 -> 0 | E86: ='2024-2025'!BI35 -> 0 | F86: ='2024-2025'!BJ35 -> 0 | G86: ='2024-2025'!BK35 -> 0 | H86: ='2024-2025'!BL35 -> 0 | I86: ='2024-2025'!BM35 -> 0 | J86: ='2024-2025'!BN35 -> 0 | K86: ='2024-2025'!BO35 -> 0 | L86: ='2024-2025'!BP35 -> 0 | M86: 0
B87: External Funding | C87: =SUM(C84:C86) -> 0 | D87: 0 | E87: 0 | F87: 0 | G87: 0 | H87: 0 | I87: 0 | J87: 0 | K87: 0 | L87: =SUM(L84:L86) -> 0 | M87: 0
B88: Licensee extra contribution | C88: ='2024-2025'!BR9 -> 0 | D88: ='2024-2025'!BS9 -> 0 | E88: ='2024-2025'!BT9 -> 0 | F88: ='2024-2025'!BU9 -> 0 | G88: ='2024-2025'!BV9 -> 0 | H88: ='2024-2025'!BW9 -> 0 | I88: ='2024-2025'!BX9 -> 0 | J88: ='2024-2025'!BY9 -> 0 | K88: ='2024-2025'!BZ9 -> 0 | L88: ='2024-2025'!CA9 -> 0 | M88: 0
B89: Initial Net Funding Required | C89: =C83-C87-C88 -> 0 | D89: =D83-D87-D88 -> 0 | E89: 0 | F89: 0 | G89: 0 | H89: 0 | I89: 0 | J89: 0 | K89: 0 | L89: 0 | M89: 0
B90: Licensee Compulsory Contribution | C90: ='2024-2025'!Z9 -> 0 | D90: ='2024-2025'!AA9 -> 0 | E90: ='2024-2025'!AB9 -> 0 | F90: ='2024-2025'!AC9 -> 0 | G90: ='2024-2025'!AD9 -> 0 | H90: ='2024-2025'!AE9 -> 0 | I90: ='2024-2025'!AF9 -> 0 | J90: ='2024-2025'!AG9 -> 0 | K90: ='2024-2025'!AH9 -> 0 | L90: ='2024-2025'!AI9 -> 0 | M90: 0
B91: Outstanding Funding Required | C91: ='2024-2025'!CC9 -> 0 | D91: ='2024-2025'!CD9 -> 0 | E91: ='2024-2025'!CE9 -> 0 | F91: ='2024-2025'!CF9 -> 0 | G91: ='2024-2025'!CG9 -> 0 | H91: ='2024-2025'!CH9 -> 0 | I91: ='2024-2025'!CI9 -> 0 | J91: ='2024-2025'!CJ9 -> 0 | K91: ='2024-2025'!CK9 -> 0 | L91: ='2024-2025'!CL9 -> 0 | M91: 0
C93: 2024/25
C94: Cost type
C95: Labour | D95: Equipment | E95: Contractors | F95: IT | G95: IPR Costs | H95: Travel & Expenses | I95: Payments to users | J95: Contingency | K95: Decommissioning | L95: Other | M95: Total
B96: Total Project Cost | C96: ='2025-2026'!G9 -> 0 | D96: ='2025-2026'!H9 -> 0 | E96: ='2025-2026'!I9 -> 0 | F96: ='2025-2026'!J9 -> 0 | G96: ='2025-2026'!K9 -> 0 | H96: ='2025-2026'!L9 -> 0 | I96: ='2025-2026'!M9 -> 0 | J96: ='2025-2026'!N9 -> 0 | K96: ='2025-2026'!O9 -> 0 | L96: ='2025-2026'!P9 -> 0 | M96: =SUM(C96:L96) -> 0
B97: Project Partner 1 | C97: ='2025-2026'!AK9 -> 0 | D97: ='2025-2026'!AL9 -> 0 | E97: ='2025-2026'!AM9 -> 0 | F97: ='2025-2026'!AN9 -> 0 | G97: ='2025-2026'!AO9 -> 0 | H97: ='2025-2026'!AP9 -> 0 | I97: ='2025-2026'!AQ9 -> 0 | J97: ='2025-2026'!AR9 -> 0 | K97: ='2025-2026'!AS9 -> 0 | L97: ='2025-2026'!AT9 -> 0 | M97: 0
B98: Project Partner 2 | C98: ='2025-2026'!AV9 -> 0 | D98: ='2025-2026'!AW9 -> 0 | E98: ='2025-2026'!AX9 -> 0 | F98: ='2025-2026'!AY9 -> 0 | G98: ='2025-2026'!AZ9 -> 0 | H98: ='2025-2026'!BA9 -> 0 | I98: ='2025-2026'!BB9 -> 0 | J98: ='2025-2026'!BC9 -> 0 | K98: ='2025-2026'!BD9 -> 0 | L98: ='2025-2026'!BE9 -> 0 | M98: 0
B99: Project Partner 3 | C99: ='2025-2026'!BG9 -> 0 | D99: ='2025-2026'!BH9 -> 0 | E99: ='2025-2026'!BI9 -> 0 | F99: ='2025-2026'!BJ9 -> 0 | G99: ='2025-2026'!BK9 -> 0 | H99: ='2025-2026'!BL9 -> 0 | I99: ='2025-2026'!BM9 -> 0 | J99: ='2025-2026'!BN9 -> 0 | K99: ='2025-2026'!BO9 -> 0 | L99: ='2025-2026'!BP9 -> 0 | M99: 0
B100: External Funding | C100: =SUM(C97:C99) -> 0 | D100: 0 | E100: 0 | F100: 0 | G100: 0 | H100: 0 | I100: 0 | J100: 0 | K100: 0 | L100: =SUM(L97:L99) -> 0 | M100: 0
B101: Licensee extra contribution | C101: ='2025-2026'!BR9 -> 0 | D101: ='2025-2026'!BS9 -> 0 | E101: ='2025-2026'!BT9 -> 0 | F101: ='2025-2026'!BU9 -> 0 | G101: ='2025-2026'!BV9 -> 0 | H101: ='2025-2026'!BW9 -> 0 | I101: ='2025-2026'!BX9 -> 0 | J101: ='2025-2026'!BY9 -> 0 | K101: ='2025-2026'!BZ9 -> 0 | L101: ='2025-2026'!CA9 -> 0 | M101: 0
B102: Initial Net Funding Required | C102: =C96-C100-C101 -> 0 | D102: =D96-D100-D101 -> 0 | E102: 0 | F102: 0 | G102: 0 | H102: 0 | I102: 0 | J102: 0 | K102: 0 | L102: 0 | M102: 0
B103: Licensee Compulsory Contribution | C103: ='2025-2026'!Z9 -> 0 | D103: ='2025-2026'!AA9 -> 0 | E103: ='2025-2026'!AB9 -> 0 | F103: ='2025-2026'!AC9 -> 0 | G103: ='2025-2026'!AD9 -> 0 | H103: ='2025-2026'!AE9 -> 0 | I103: ='2025-2026'!AF9 -> 0 | J103: ='2025-2026'!AG9 -> 0 | K103: ='2025-2026'!AH9 -> 0 | L103: ='2025-2026'!AI9 -> 0 | M103: 0
B104: Outstanding Funding Required | C104: ='2025-2026'!CC9 -> 0 | D104: ='2025-2026'!CD9 -> 0 | E104: ='2025-2026'!CE9 -> 0 | F104: ='2025-2026'!CF9 -> 0 | G104: ='2025-2026'!CG9 -> 0 | H104: ='2025-2026'!CH9 -> 0 | I104: ='2025-2026'!CI9 -> 0 | J104: ='2025-2026'!CJ9 -> 0 | K104: ='2025-2026'!CK9 -> 0 | L104: ='2025-2026'!CL9 -> 0 | M104: 0
C106: 2026/27
C107: Cost type
C108: Labour | D108: Equipment | E108: Contractors | F108: IT | G108: IPR Costs | H108: Travel & Expenses | I108: Payments to users | J108: Contingency | K108: Decommissioning | L108: Other | M108: Total
B109: Total Project Cost | C109: ='2026-27'!G22 -> 0 | D109: ='2026-27'!H9 -> 0 | E109: ='2026-27'!I9 -> 0 | F109: ='2026-27'!J9 -> 0 | G109: ='2026-27'!K9 -> 0 | H109: ='2026-27'!L9 -> 0 | I109: ='2026-27'!M9 -> 0 | J109: ='2026-27'!N9 -> 0 | K109: ='2026-27'!O9 -> 0 | L109: ='2026-27'!P9 -> 0 | M109: =SUM(C109:L109) -> 0
B110: Project Partner 1 | C110: ='2026-27'!AK22 -> 0 | D110: ='2026-27'!AL9 -> 0 | E110: ='2026-27'!AM9 -> 0 | F110: ='2026-27'!AN9 -> 0 | G110: ='2026-27'!AO9 -> 0 | H110: ='2026-27'!AP9 -> 0 | I110: ='2026-27'!AQ9 -> 0 | J110: ='2026-27'!AR9 -> 0 | K110: ='2026-27'!AS9 -> 0 | L110: ='2026-27'!AT9 -> 0 | M110: 0
B111: Project Partner 2 | C111: ='2026-27'!AV22 -> 0 | D111: ='2026-27'!AW9 -> 0 | E111: ='2026-27'!AX9 -> 0 | F111: ='2026-27'!AY9 -> 0 | G111: ='2026-27'!AZ9 -> 0 | H111: ='2026-27'!BA9 -> 0 | I111: ='2026-27'!BB9 -> 0 | J111: ='2026-27'!BC9 -> 0 | K111: ='2026-27'!BD9 -> 0 | L111: ='2026-27'!BE9 -> 0 | M111: 0
B112: Project Partner 3 | C112: ='2026-27'!BG22 -> 0 | D112: ='2026-27'!BH61 -> 0 | E112: ='2026-27'!BI61 -> 0 | F112: ='2026-27'!BJ61 -> 0 | G112: ='2026-27'!BK61 -> 0 | H112: ='2026-27'!BL61 -> 0 | I112: ='2026-27'!BM61 -> 0 | J112: ='2026-27'!BN61 -> 0 | K112: ='2026-27'!BO61 -> 0 | L112: ='2026-27'!BP61 -> 0 | M112: 0
B113: External Funding | C113: =SUM(C110:C112) -> 0 | D113: 0 | E113: 0 | F113: 0 | G113: 0 | H113: 0 | I113: 0 | J113: 0 | K113: 0 | L113: =SUM(L110:L112) -> 0 | M113: 0
B114: Licensee extra contribution | C114: ='2026-27'!BR9 -> 0 | D114: ='2026-27'!BS9 -> 0 | E114: ='2026-27'!BT9 -> 0 | F114: ='2026-27'!BU9 -> 0 | G114: ='2026-27'!BV9 -> 0 | H114: ='2026-27'!BW9 -> 0 | I114: ='2026-27'!BX9 -> 0 | J114: ='2026-27'!BY9 -> 0 | K114: ='2026-27'!BZ9 -> 0 | L114: ='2026-27'!CA9 -> 0 | M114: 0
B115: Initial Net Funding Required | C115: =C109-C113-C114 -> 0 | D115: =D109-D113-D114 -> 0 | E115: 0 | F115: 0 | G115: 0 | H115: 0 | I115: 0 | J115: 0 | K115: 0 | L115: 0 | M115: 0
B116: Licensee Compulsory Contribution | C116: ='2026-27'!Z9 -> 0 | D116: ='2026-27'!AA9 -> 0 | E116: ='2026-27'!AB9 -> 0 | F116: ='2026-27'!AC9 -> 0 | G116: ='2026-27'!AD9 -> 0 | H116: ='2026-27'!AE9 -> 0 | I116: ='2026-27'!AF9 -> 0 | J116: ='2026-27'!AG9 -> 0 | K116: ='2026-27'!AH9 -> 0 | L116: ='2026-27'!AI9 -> 0 | M116: 0
B117: Outstanding Funding Required | C117: ='2026-27'!CC9 -> 0 | D117: ='2026-27'!CD9 -> 0 | E117: ='2026-27'!CE9 -> 0 | F117: ='2026-27'!CF9 -> 0 | G117: ='2026-27'!CG9 -> 0 | H117: ='2026-27'!CH9 -> 0 | I117: ='2026-27'!CI9 -> 0 | J117: ='2026-27'!CJ9 -> 0 | K117: ='2026-27'!CK9 -> 0 | L117: ='2026-27'!CL9 -> 0 | M117: 0

Sheet 2019-2020
B1: Project Costs in 2019-2020
G4: Total Cost £K | R4: Funding source % | Z4: Licensee Compulsory Contribution/Direct Benefits | AK4: Project Partner 1 | AV4: Project Partner 2 | BG4: Project Partner 3 | BR4: Licensee Extra Contribution | CC4: Outstanding Funding Required
G5: Labour | H5: Equipment | I5: Contractors | J5: IT | K5: IPR Costs | L5: Travel & Expenses | M5: Payments to users | N5: Contingency | O5: Decommissioning | P5: Other | R5: Licensee Compulsory Contribution /Direct Benefits | S5: DNV GL | T5: Project Partner 2 | U5: Project Partner 3 | V5: Licensee Extra Contribution | W5: Oustanding Funding Required | X5: Total | Z5: Labour | AA5: Equipment | AB5: Contractors | AC5: IT | AD5: IPR Costs | AE5: Travel & Expenses | AF5: Payments to users | AG5: Contingency | AH5: Decommissioning | AI5: Other | AK5: Labour | AL5: Equipment | AM5: Contractors | AN5: IT | AO5: IPR Costs | AP5: Travel & Expenses | AQ5: Payments to users | AR5: Contingency | AS5: Decommissioning | AT5: Other | AV5: Labour | AW5: Equipment | AX5: Contractors | AY5: IT | AZ5: IPR Costs | BA5: Travel & Expenses | BB5: Payments to users | BC5: Contingency | BD5: Decommissioning | BE5: Other | BG5: Labour | BH5: Equipment | BI5: Contractors | BJ5: IT | BK5: IPR Costs | BL5: Travel & Expenses | BM5: Payments to users | BN5: Contingency | BO5: Decommissioning | BP5: Other | BR5: Labour | BS5: Equipment | BT5: Contractors | BU5: IT | BV5: IPR Costs | BW5: Travel & Expenses | BX5: Payments to users | BY5: Contingency | BZ5: Decommissioning | CA5: Other | CC5: Labour | CD5: Equipment | CE5: Contractors | CF5: IT | CG5: IPR Costs | CH5: Travel & Expenses | CI5: Payments to users | CJ5: Contingency | CK5: Decommissioning | CL5: Other
B6: Description | C6: Task | D6: Project Workstream
B7: Phase 2a | C7: Network Operations | D7: Workstream 1 | G7: ='[2]OFgem Figures all'!$D$7 -> 39120 | H7: ='[2]OFgem Figures all'!$F$7 -> 3000 | I7: ='[2]OFgem Figures all'!$E$7 -> 111018.9 | J7: ='[2]OFgem Figures all'!$G$7 -> 1875 | N7: ='[2]OFgem Figures all'!$H$7 -> 7473.1 | R7: =0.1-(S7*0.09986) -> 0.095925712 | S7: 0.0408 | W7: =1-R7-S7 -> 0.863274288 | X7: =SUM(R7:W7) -> 1 | Z7: =$R7*G7 -> 3752.613853 | AA7: =$R7*H7 -> 287.777136 | AB7: =$R7*I7 -> 10649.56703 | AC7: =$R7*J7 -> 179.86071 | AD7: =$R7*K7 -> 0 | AE7: =$R7*L7 -> 0 | AF7: =$R7*M7 -> 0 | AG7: =$R7*N7 -> 716.8624383 | AH7: =$R7*O7 -> 0 | AI7: =$R7*P7 -> 0 | AK7: =$S7*G7 -> 1596.096 | AL7: =$S7*H7 -> 122.4 | AM7: =$S7*I7 -> 4529.57112 | AN7: =$S7*J7 -> 76.5 | AO7: =$S7*K7 -> 0 | AP7: =$S7*L7 -> 0 | AQ7: =$S7*M7 -> 0 | AR7: =$S7*N7 -> 304.90248 | AS7: =$S7*O7 -> 0 | AT7: =$S7*P7 -> 0 | AV7: =$T7*G7 -> 0 | AW7: =$T7*H7 -> 0 | AX7: =$T7*I7 -> 0 | AY7: =$T7*J7 -> 0 | AZ7: =$T7*K7 -> 0 | BA7: =$T7*L7 -> 0 | BB7: =$T7*M7 -> 0 | BC7: =$T7*N7 -> 0 | BD7: =$T7*O7 -> 0 | BE7: =$T7*P7 -> 0 | BG7: =$U7*G7 -> 0 | BH7: =$U7*H7 -> 0 | BI7: =$U7*I7 -> 0 | BJ7: =$U7*J7 -> 0 | BK7: =$U7*K7 -> 0 | BL7: =$U7*L7 -> 0 | BM7: =$U7*M7 -> 0 | BN7: =$U7*N7 -> 0 | BO7: =$U7*O7 -> 0 | BP7: =$U7*P7 -> 0 | BR7: =$V7*G7 -> 0 | BS7: =$V7*H7 -> 0 | BT7: =$V7*I7 -> 0 | BU7: =$V7*J7 -> 0 | BV7: =$V7*K7 -> 0 | BW7: =$V7*L7 -> 0 | BX7: =$V7*M7 -> 0 | BY7: =$V7*N7 -> 0 | BZ7: =$V7*O7 -> 0 | CA7: =$V7*P7 -> 0 | CC7: =$W7*G7 -> 33771.29015 | CD7: =$W7*H7 -> 2589.822864 | CE7: =$W7*I7 -> 95839.76185 | CF7: =$W7*J7 -> 1618.63929 | CG7: =$W7*K7 -> 0 | CH7: =$W7*L7 -> 0 | CI7: =$W7*M7 -> 0 | CJ7: =$W7*N7 -> 6451.335082 | CK7: =$W7*O7 -> 0 | CL7: =$W7*P7 -> 0
B8: Phase 2b | C8: Unoccupied Trials | D8: Workstream 1 | G8: ='[2]OFgem Figures all'!$D$8 -> 63504 | H8: ='[2]OFgem Figures all'!$F$8 -> 25000 | I8: ='[2]OFgem Figures all'!$E$8 -> 0 | J8: ='[2]OFgem Figures all'!$G$8 -> 1875 | N8: ='[2]OFgem Figures all'!$H$8 -> 2646 | R8: 0.1 | W8: 0.9 | X8: =SUM(R8:W8) -> 1 | Z8: =$R8*G8 -> 6350.4 | AA8: 2500 | AB8: 0 | AC8: 187.5 | AD8: 0 | AE8: 0 | AF8: 0 | AG8: 264.6 | AH8: 0 | AI8: 0 | AK8: =$S8*G8 -> 0 | AL8: 0 | AM8: 0 | AN8: 0 | AO8: 0 | AP8: 0 | AQ8: 0 | AR8: 0 | AS8: 0 | AT8: 0 | AV8: =$T8*G8 -> 0 | AW8: 0 | AX8: 0 | AY8: 0 | AZ8: 0 | BA8: 0 | BB8: 0 | BC8: 0 | BD8: 0 | BE8: 0 | BG8: =$U8*G8 -> 0 | BH8: 0 | BI8: 0 | BJ8: 0 | BK8: 0 | BL8: 0 | BM8: 0 | BN8: 0 | BO8: 0 | BP8: 0 | BR8: =$V8*G8 -> 0 | BS8: 0 | BT8: 0 | BU8: 0 | BV8: 0 | BW8: 0 | BX8: 0 | BY8: 0 | BZ8: 0 | CA8: 0 | CC8: =$W8*G8 -> 57153.6 | CD8: 22500 | CE8: 0 | CF8: 1687.5 | CG8: 0 | CH8: 0 | CI8: 0 | CJ8: 2381.4 | CK8: 0 | CL8: 0
B9: Phase 2c | C9: Combining QRA | D9: Workstream 1 | G9: ='[2]OFgem Figures all'!$D$9 -> 350 | H9: ='[2]OFgem Figures all'!$F$9 -> 0 | I9: ='[2]OFgem Figures all'!$E$9 -> 16290 | J9: ='[2]OFgem Figures all'!$G$9 -> 0 | N9: ='[2]OFgem Figures all'!$H$9 -> 0 | R9: 0.1 | W9: 0.9 | X9: =SUM(R9:W9) -> 1 | Z9: =$R9*G9 -> 35 | AA9: =$R9*H9 -> 0 | AB9: =$R9*I9 -> 1629 | AC9: =$R9*J9 -> 0 | AD9: =$R9*K9 -> 0 | AE9: =$R9*L9 -> 0 | AF9: =$R9*M9 -> 0 | AG9: =$R9*N9 -> 0 | AH9: =$R9*O9 -> 0 | AI9: =$R9*P9 -> 0 | AK9: =$S9*G9 -> 0 | AL9: =$S9*H9 -> 0 | AM9: =$S9*I9 -> 0 | AN9: =$S9*J9 -> 0 | AO9: =$S9*K9 -> 0 | AP9: =$S9*L9 -> 0 | AQ9: =$S9*M9 -> 0 | AR9: =$S9*N9 -> 0 | AS9: =$S9*O9 -> 0 | AT9: =$S9*P9 -> 0 | AV9: =$T9*G9 -> 0 | AW9: =$T9*H9 -> 0 | AX9: =$T9*I9 -> 0 | AY9: =$T9*J9 -> 0 | AZ9: =$T9*K9 -> 0 | BA9: =$T9*L9 -> 0 | BB9: =$T9*M9 -> 0 | BC9: =$T9*N9 -> 0 | BD9: =$T9*O9 -> 0 | BE9: =$T9*P9 -> 0 | BG9: =$U9*G9 -> 0 | BH9: =$U9*H9 -> 0 | BI9: =$U9*I9 -> 0 | BJ9: =$U9*J9 -> 0 | BK9: =$U9*K9 -> 0 | BL9: =$U9*L9 -> 0 | BM9: =$U9*M9 -> 0 | BN9: =$U9*N9 -> 0 | BO9: =$U9*O9 -> 0 | BP9: =$U9*P9 -> 0 | BR9: =$V9*G9 -> 0 | BS9: =$V9*H9 -> 0 | BT9: =$V9*I9 -> 0 | BU9: =$V9*J9 -> 0 | BV9: =$V9*K9 -> 0 | BW9: =$V9*L9 -> 0 | BX9: =$V9*M9 -> 0 | BY9: =$V9*N9 -> 0 | BZ9: =$V9*O9 -> 0 | CA9: =$V9*P9 -> 0 | CC9: =$W9*G9 -> 315 | CD9: =$W9*H9 -> 0 | CE9: =$W9*I9 -> 14661 | CF9: =$W9*J9 -> 0 | CG9: =$W9*K9 -> 0 | CH9: =$W9*L9 -> 0 | CI9: =$W9*M9 -> 0 | CJ9: =$W9*N9 -> 0 | CK9: =$W9*O9 -> 0 | CL9: =$W9*P9 -> 0
B10: Phase 2d | C10: Social Sciences | D10: Workstream 1 | G10: ='[2]OFgem Figures all'!$D$10 -> 350 | H10: ='[2]OFgem Figures all'!$F$10 -> 0 | I10: ='[2]OFgem Figures all'!$E$10 -> 18000 | J10: ='[2]OFgem Figures all'!$G$10 -> 0 | N10: ='[2]OFgem Figures all'!$H$10 -> 0 | R10: 0.1 | W10: 0.9 | X10: =SUM(R10:W10) -> 1 | Z10: =$R10*G10 -> 35 | AA10: =$R10*H10 -> 0 | AB10: 1800 | AC10: 0 | AD10: 0 | AE10: 0 | AF10: 0 | AG10: 0 | AH10: 0 | AI10: 0 | AK10: =$S10*G10 -> 0 | AL10: =$S10*H10 -> 0 | AM10: 0 | AN10: 0 | AO10: 0 | AP10: 0 | AQ10: 0 | AR10: 0 | AS10: 0 | AT10: 0 | AV10: =$T10*G10 -> 0 | AW10: =$T10*H10 -> 0 | AX10: 0 | AY10: 0 | AZ10: 0 | BA10: 0 | BB10: 0 | BC10: 0 | BD10: 0 | BE10: 0 | BG10: =$U10*G10 -> 0 | BH10: =$U10*H10 -> 0 | BI10: 0 | BJ10: 0 | BK10: 0 | BL10: 0 | BM10: 0 | BN10: 0 | BO10: 0 | BP10: 0 | BR10: =$V10*G10 -> 0 | BS10: =$V10*H10 -> 0 | BT10: 0 | BU10: 0 | BV10: 0 | BW10: 0 | BX10: 0 | BY10: 0 | BZ10: 0 | CA10: 0 | CC10: =$W10*G10 -> 315 | CD10: =$W10*H10 -> 0 | CE10: 16200 | CF10: 0 | CG10: 0 | CH10: 0 | CI10: 0 | CJ10: 0 | CK10: 0 | CL10: 0
Q11: Total Cost | X11: =SUM(R11:W11) -> 0 | Z11: =$R11*G11 -> 0 | AA11: 0 | AB11: 0 | AC11: 0 | AD11: 0 | AE11: 0 | AF11: 0 | AG11: 0 | AH11: 0 | AI11: 0 | AK11: =$S11*G11 -> 0 | AL11: 0 | AM11: 0 | AN11: 0 | AO11: 0 | AP11: 0 | AQ11: 0 | AR11: 0 | AS11: 0 | AT11: 0 | AV11: =$T11*G11 -> 0 | AW11: 0 | AX11: 0 | AY11: 0 | AZ11: 0 | BA11: 0 | BB11: 0 | BC11: 0 | BD11: 0 | BE11: 0 | BG11: =$U11*G11 -> 0 | BH11: 0 | BI11: 0 | BJ11: 0 | BK11: 0 | BL11: 0 | BM11: 0 | BN11: 0 | BO11: 0 | BP11: 0 | BR11: =$V11*G11 -> 0 | BS11: 0 | BT11: 0 | BU11: 0 | BV11: 0 | BW11: 0 | BX11: 0 | BY11: 0 | BZ11: 0 | CA11: 0 | CC11: =$W11*G11 -> 0 | CD11: 0 | CE11: 0 | CF11: 0 | CG11: 0 | CH11: 0 | CI11: 0 | CJ11: 0 | CK11: 0 | CL11: 0
B12: Total | G12: =SUM(G7:G11) -> 103324 | H12: =SUM(H7:H11) -> 28000 | I12: 145308.9 | J12: 3750 | K12: 0 | L12: 0 | M12: 0 | N12: 10119.1 | O12: 0 | P12: 0 | Q12: =SUM(G12:P12) -> 290502 | Z12: =SUM(Z7:Z11) -> 10173.01385 | AA12: =SUM(AA7:AA11) -> 2787.777136 | AB12: 14078.56703 | AC12: 367.36071 | AD12: 0 | AE12: 0 | AF12: 0 | AG12: 981.4624383 | AH12: 0 | AI12: 0 | AK12: =SUM(AK7:AK11) -> 1596.096 | AL12: =SUM(AL7:AL11) -> 122.4 | AM12: 4529.57112 | AN12: 76.5 | AO12: 0 | AP12: 0 | AQ12: 0 | AR12: 304.90248 | AS12: 0 | AT12: 0 | AV12: =SUM(AV10:AV11) -> 0 | AW12: =SUM(AW10:AW11) -> 0 | AX12: 0 | AY12: 0 | AZ12: 0 | BA12: 0 | BB12: 0 | BC12: 0 | BD12: 0 | BE12: 0 | BG12: =SUM(BG10:BG11) -> 0 | BH12: =SUM(BH10:BH11) -> 0 | BI12: 0 | BJ12: 0 | BK12: 0 | BL12: 0 | BM12: 0 | BN12: 0 | BO12: 0 | BP12: 0 | BR12: =SUM(BR10:BR11) -> 0 | BS12: =SUM(BS10:BS11) -> 0 | BT12: 0 | BU12: 0 | BV12: 0 | BW12: 0 | BX12: 0 | BY12: 0 | BZ12: 0 | CA12: 0 | CC12: =SUM(CC7:CC11) -> 91554.89015 | CD12: =SUM(CD7:CD11) -> 25089.82286 | CE12: 126700.7619 | CF12: 3306.13929 | CG12: 0 | CH12: 0 | CI12: 0 | CJ12: 8832.735082 | CK12: 0 | CL12: 0
D258: Totals

Sheet 2020-2021
B1: Project Costs in 2020-2021
G4: Total Cost £K | R4: Funding source % | Z4: Licensee Compulsory Contribution/Direct Benefits | AK4: Project Partner 1 | AV4: Project Partner 2 | BG4: Project Partner 3 | BR4: Licensee Extra Contribution | CC4: Outstanding Funding Required
G5: Labour | H5: Equipment | I5: Contractors | J5: IT | K5: IPR Costs | L5: Travel & Expenses | M5: Payments to users | N5: Contingency | O5: Decommissioning | P5: Other | R5: Licensee Compulsory Contribution /Direct Benefits | S5: DNV GL | T5: Project Partner 2 | U5: Project Partner 3 | V5: Licensee Extra Contribution | W5: Oustanding Funding Required | X5: Total | Z5: Labour | AA5: Equipment | AB5: Contractors | AC5: IT | AD5: IPR Costs | AE5: Travel & Expenses | AF5: Payments to users | AG5: Contingency | AH5: Decommissioning | AI5: Other | AK5: Labour | AL5: Equipment | AM5: Contractors | AN5: IT | AO5: IPR Costs | AP5: Travel & Expenses | AQ5: Payments to users | AR5: Contingency | AS5: Decommissioning | AT5: Other | AV5: Labour | AW5: Equipment | AX5: Contractors | AY5: IT | AZ5: IPR Costs | BA5: Travel & Expenses | BB5: Payments to users | BC5: Contingency | BD5: Decommissioning | BE5: Other | BG5: Labour | BH5: Equipment | BI5: Contractors | BJ5: IT | BK5: IPR Costs | BL5: Travel & Expenses | BM5: Payments to users | BN5: Contingency | BO5: Decommissioning | BP5: Other | BR5: Labour | BS5: Equipment | BT5: Contractors | BU5: IT | BV5: IPR Costs | BW5: Travel & Expenses | BX5: Payments to users | BY5: Contingency | BZ5: Decommissioning | CA5: Other | CC5: Labour | CD5: Equipment | CE5: Contractors | CF5: IT | CG5: IPR Costs | CH5: Travel & Expenses | CI5: Payments to users | CJ5: Contingency | CK5: Decommissioning | CL5: Other
B6: Description | C6: Task | D6: Project Workstream
B7: ='2019-2020'!B7 -> Phase 2a | C7: ='2019-2020'!C7 -> Network Operations | D7: ='2019-2020'!D7 -> Workstream 1 | G7: ='[2]OFgem Figures all'!$K$7 -> 497222.4 | H7: ='[2]OFgem Figures all'!$M$7 -> 1611795.635 | I7: ='[2]OFgem Figures all'!$L$7 -> 1265386.6 | J7: ='[2]OFgem Figures all'!$N$7 -> 7500 | N7: ='[2]OFgem Figures all'!$O$7 -> 105548.9492 | R7: ='2019-2020'!R7 -> 0.095925712 | S7: ='2019-2020'!S7 -> 0.0408 | W7: =1-R7-S7 -> 0.863274288 | X7: =SUM(R7:W7) -> 1 | Z7: =$R7*G7 -> 47696.41274 | AA7: =$R7*H7 -> 154612.6439 | AB7: =$R7*I7 -> 121383.1106 | AC7: =$R7*J7 -> 719.44284 | AD7: =$R7*K7 -> 0 | AE7: =$R7*L7 -> 0 | AF7: =$R7*M7 -> 0 | AG7: =$R7*N7 -> 10124.8581 | AH7: =$R7*O7 -> 0 | AI7: =$R7*P7 -> 0 | AK7: =$S7*G7 -> 20286.67392 | AL7: =$S7*H7 -> 65761.2619 | AM7: =$S7*I7 -> 51627.77328 | AN7: =$S7*J7 -> 306 | AO7: =$S7*K7 -> 0 | AP7: =$S7*L7 -> 0 | AQ7: =$S7*M7 -> 0 | AR7: =$S7*N7 -> 4306.397128 | AS7: =$S7*O7 -> 0 | AT7: =$S7*P7 -> 0 | AV7: =$T7*G7 -> 0 | AW7: =$T7*H7 -> 0 | AX7: =$T7*I7 -> 0 | AY7: =$T7*J7 -> 0 | AZ7: =$T7*K7 -> 0 | BA7: =$T7*L7 -> 0 | BB7: =$T7*M7 -> 0 | BC7: =$T7*N7 -> 0 | BD7: =$T7*O7 -> 0 | BE7: =$T7*P7 -> 0 | BG7: =$U7*G7 -> 0 | BH7: =$U7*H7 -> 0 | BI7: =$U7*I7 -> 0 | BJ7: =$U7*J7 -> 0 | BK7: =$U7*K7 -> 0 | BL7: =$U7*L7 -> 0 | BM7: =$U7*M7 -> 0 | BN7: =$U7*N7 -> 0 | BO7: =$U7*O7 -> 0 | BP7: =$U7*P7 -> 0 | BR7: =$V7*G7 -> 0 | BS7: =$V7*H7 -> 0 | BT7: =$V7*I7 -> 0 | BU7: =$V7*J7 -> 0 | BV7: =$V7*K7 -> 0 | BW7: =$V7*L7 -> 0 | BX7: =$V7*M7 -> 0 | BY7: =$V7*N7 -> 0 | BZ7: =$V7*O7 -> 0 | CA7: =$V7*P7 -> 0 | CC7: =$W7*G7 -> 429239.3133 | CD7: =$W7*H7 -> 1391421.729 | CE7: =$W7*I7 -> 1092375.716 | CF7: =$W7*J7 -> 6474.55716 | CG7: =$W7*K7 -> 0 | CH7: =$W7*L7 -> 0 | CI7: =$W7*M7 -> 0 | CJ7: =$W7*N7 -> 91117.69398 | CK7: =$W7*O7 -> 0 | CL7: =$W7*P7 -> 0
B8: ='2019-2020'!B8 -> Phase 2b | C8: ='2019-2020'!C8 -> Unoccupied Trials | D8: ='2019-2020'!D8 -> Workstream 1 | G8: ='[2]OFgem Figures all'!$K$8 -> 245462.4 | H8: ='[2]OFgem Figures all'!$M$8 -> 1401071.429 | I8: ='[2]OFgem Figures all'!$L$8 -> 94659.9 | J8: ='[2]OFgem Figures all'!$N$8 -> 7500 | N8: ='[2]OFgem Figures all'!$O$8 -> 15209.7 | R8: 0.1 | W8: 0.9 | X8: =SUM(R8:W8) -> 1 | Z8: =$R8*G8 -> 24546.24 | AA8: 140107.1429 | AB8: 9465.99 | AC8: 750 | AD8: 0 | AE8: 0 | AF8: 0 | AG8: 1520.97 | AH8: 0 | AI8: 0 | AK8: =$S8*G8 -> 0 | AL8: 0 | AM8: 0 | AN8: 0 | AO8: 0 | AP8: 0 | AQ8: 0 | AR8: 0 | AS8: 0 | AT8: 0 | AV8: =$T8*G8 -> 0 | AW8: 0 | AX8: 0 | AY8: 0 | AZ8: 0 | BA8: 0 | BB8: 0 | BC8: 0 | BD8: 0 | BE8: 0 | BG8: =$U8*G8 -> 0 | BH8: 0 | BI8: 0 | BJ8: 0 | BK8: 0 | BL8: 0 | BM8: 0 | BN8: 0 | BO8: 0 | BP8: 0 | BR8: =$V8*G8 -> 0 | BS8: 0 | BT8: 0 | BU8: 0 | BV8: 0 | BW8: 0 | BX8: 0 | BY8: 0 | BZ8: 0 | CA8: 0 | CC8: =$W8*G8 -> 220916.16 | CD8: 1260964.286 | CE8: 85193.91 | CF8: 6750 | CG8: 0 | CH8: 0 | CI8: 0 | CJ8: 13688.73 | CK8: 0 | CL8: 0
B9: ='2019-2020'!B9 -> Phase 2c | C9: ='2019-2020'!C9 -> Combining QRA | D9: ='2019-2020'!D9 -> Workstream 1 | G9: ='[2]OFgem Figures all'!$K$9 -> 16410 | H9: ='[2]OFgem Figures all'!$M$9 -> 0 | I9: ='[2]OFgem Figures all'!$L$9 -> 131258 | J9: ='[2]OFgem Figures all'!$N$9 -> 0 | N9: ='[2]OFgem Figures all'!$O$9 -> 0 | R9: 0.1 | W9: 0.9 | X9: =SUM(R9:W9) -> 1 | Z9: =$R9*G9 -> 1641 | AA9: =$R9*H9 -> 0 | AB9: 13125.8 | AC9: 0 | AD9: 0 | AE9: 0 | AF9: 0 | AG9: 0 | AH9: 0 | AI9: 0 | AK9: =$S9*G9 -> 0 | AL9: =$S9*H9 -> 0 | AM9: 0 | AN9: 0 | AO9: 0 | AP9: 0 | AQ9: 0 | AR9: 0 | AS9: 0 | AT9: 0 | AV9: =$T9*G9 -> 0 | AW9: =$T9*H9 -> 0 | AX9: 0 | AY9: 0 | AZ9: 0 | BA9: 0 | BB9: 0 | BC9: 0 | BD9: 0 | BE9: 0 | BG9: =$U9*G9 -> 0 | BH9: =$U9*H9 -> 0 | BI9: 0 | BJ9: 0 | BK9: 0 | BL9: 0 | BM9: 0 | BN9: 0 | BO9: 0 | BP9: 0 | BR9: =$V9*G9 -> 0 | BS9: =$V9*H9 -> 0 | BT9: 0 | BU9: 0 | BV9: 0 | BW9: 0 | BX9: 0 | BY9: 0 | BZ9: 0 | CA9: 0 | CC9: =$W9*G9 -> 14769 | CD9: =$W9*H9 -> 0 | CE9: 118132.2 | CF9: 0 | CG9: 0 | CH9: 0 | CI9: 0 | CJ9: 0 | CK9: 0 | CL9: 0
B10: ='2019-2020'!B10 -> Phase 2d | C10: ='2019-2020'!C10 -> Social Sciences | D10: ='2019-2020'!D10 -> Workstream 1 | G10: ='[2]OFgem Figures all'!$K$10 -> 16410 | H10: ='[2]OFgem Figures all'!$M$10 -> 0 | I10: ='[2]OFgem Figures all'!$L$10 -> 72000 | J10: ='[2]OFgem Figures all'!$N$10 -> 0 | N10: ='[2]OFgem Figures all'!$O$10 -> 0 | Q10: Total Cost | R10: 0.1 | W10: 0.9 | X10: =SUM(R10:W10) -> 1 | Z10: =$R10*G10 -> 1641 | AA10: 0 | AB10: 7200 | AC10: 0 | AD10: 0 | AE10: 0 | AF10: 0 | AG10: 0 | AH10: 0 | AI10: 0 | AK10: =$S10*G10 -> 0 | AL10: 0 | AM10: 0 | AN10: 0 | AO10: 0 | AP10: 0 | AQ10: 0 | AR10: 0 | AS10: 0 | AT10: 0 | AV10: =$T10*G10 -> 0 | AW10: 0 | AX10: 0 | AY10: 0 | AZ10: 0 | BA10: 0 | BB10: 0 | BC10: 0 | BD10: 0 | BE10: 0 | BG10: =$U10*G10 -> 0 | BH10: 0 | BI10: 0 | BJ10: 0 | BK10: 0 | BL10: 0 | BM10: 0 | BN10: 0 | BO10: 0 | BP10: 0 | BR10: =$V10*G10 -> 0 | BS10: 0 | BT10: 0 | BU10: 0 | BV10: 0 | BW10: 0 | BX10: 0 | BY10: 0 | BZ10: 0 | CA10: 0 | CC10: =$W10*G10 -> 14769 | CD10: 0 | CE10: 64800 | CF10: 0 | CG10: 0 | CH10: 0 | CI10: 0 | CJ10: 0 | CK10: 0 | CL10: 0
B11: Total | G11: =SUM(G7:G10) -> 775504.8 | H11: =SUM(H7:H10) -> 3012867.063 | I11: 1563304.5 | J11: 15000 | K11: 0 | L11: 0 | M11: 0 | N11: 120758.6492 | O11: 0 | P11: 0 | Q11: =SUM(G11:P11) -> 5487435.013 | Z11: =SUM(Z7:Z10) -> 75524.65274 | AA11: =SUM(AA7:AA10) -> 294719.7867 | AB11: 151174.9006 | AC11: 1469.44284 | AD11: 0 | AE11: 0 | AF11: 0 | AG11: 11645.8281 | AH11: 0 | AI11: 0 | AK11: =SUM(AK6:AK10) -> 20286.67392 | AL11: =SUM(AL6:AL10) -> 65761.2619 | AM11: 51627.77328 | AN11: 306 | AO11: 0 | AP11: 0 | AQ11: 0 | AR11: 4306.397128 | AS11: 0 | AT11: 0 | AV11: =SUM(AV9:AV10) -> 0 | AW11: =SUM(AW9:AW10) -> 0 | AX11: 0 | AY11: 0 | AZ11: 0 | BA11: 0 | BB11: 0 | BC11: 0 | BD11: 0 | BE11: 0 | BG11: =SUM(BG9:BG10) -> 0 | BH11: =SUM(BH9:BH10) -> 0 | BI11: 0 | BJ11: 0 | BK11: 0 | BL11: 0 | BM11: 0 | BN11: 0 | BO11: 0 | BP11: 0 | BR11: =SUM(BR9:BR10) -> 0 | BS11: =SUM(BS9:BS10) -> 0 | BT11: 0 | BU11: 0 | BV11: 0 | BW11: 0 | BX11: 0 | BY11: 0 | BZ11: 0 | CA11: 0 | CC11: =SUM(CC7:CC10) -> 679693.4733 | CD11: =SUM(CD7:CD10) -> 2652386.015 | CE11: 1360501.826 | CF11: 13224.55716 | CG11: 0 | CH11: 0 | CI11: 0 | CJ11: 104806.424 | CK11: 0 | CL11: 0
D257: Totals

Sheet 2021-2022
B1: Project Costs in 2021-2022
G4: Total Cost £K | R4: Funding source % | Z4: Licensee Compulsory Contribution/Direct Benefits | AK4: Project Partner 1 | AV4: Project Partner 2 | BG4: Project Partner 3 | BR4: Licensee Extra Contribution | CC4: Outstanding Funding Required
G5: Labour | H5: Equipment | I5: Contractors | J5: IT | K5: IPR Costs | L5: Travel & Expenses | M5: Payments to users | N5: Contingency | O5: Decommissioning | P5: Other | R5: Licensee Compulsory Contribution /Direct Benefits | S5: DNV GL | T5: Project Partner 2 | U5: Project Partner 3 | V5: Licensee Extra Contribution | W5: Oustanding Funding Required | X5: Total | Z5: Labour | AA5: Equipment | AB5: Contractors | AC5: IT | AD5: IPR Costs | AE5: Travel & Expenses | AF5: Payments to users | AG5: Contingency | AH5: Decommissioning | AI5: Other | AK5: Labour | AL5: Equipment | AM5: Contractors | AN5: IT | AO5: IPR Costs | AP5: Travel & Expenses | AQ5: Payments to users | AR5: Contingency | AS5: Decommissioning | AT5: Other | AV5: Labour | AW5: Equipment | AX5: Contractors | AY5: IT | AZ5: IPR Costs | BA5: Travel & Expenses | BB5: Payments to users | BC5: Contingency | BD5: Decommissioning | BE5: Other | BG5: Labour | BH5: Equipment | BI5: Contractors | BJ5: IT | BK5: IPR Costs | BL5: Travel & Expenses | BM5: Payments to users | BN5: Contingency | BO5: Decommissioning | BP5: Other | BR5: Labour | BS5: Equipment | BT5: Contractors | BU5: IT | BV5: IPR Costs | BW5: Travel & Expenses | BX5: Payments to users | BY5: Contingency | BZ5: Decommissioning | CA5: Other | CC5: Labour | CD5: Equipment | CE5: Contractors | CF5: IT | CG5: IPR Costs | CH5: Travel & Expenses | CI5: Payments to users | CJ5: Contingency | CK5: Decommissioning | CL5: Other
B6: Description | C6: Task | D6: Project Workstream
B7: ='2019-2020'!B7 -> Phase 2a | C7: ='2019-2020'!C7 -> Network Operations | D7: ='2019-2020'!D7 -> Workstream 1 | G7: ='[2]OFgem Figures all'!$R$7 -> 271968 | H7: ='[2]OFgem Figures all'!$T$7 -> 108373.0159 | I7: ='[2]OFgem Figures all'!$S$7 -> 287622.38 | J7: ='[2]OFgem Figures all'!$U$7 -> 5625 | N7: ='[2]OFgem Figures all'!$V$7 -> 26470.02 | R7: ='2019-2020'!R7 -> 0.095925712 | S7: ='2019-2020'!S7 -> 0.0408 | W7: =1-R7-S7 -> 0.863274288 | X7: =SUM(R7:W7) -> 1 | Z7: =$R7*G7 -> 26088.72404 | AA7: =$R7*H7 -> 10395.75871 | AB7: =$R7*I7 -> 27590.38159 | AC7: =$R7*J7 -> 539.58213 | AD7: =$R7*K7 -> 0 | AE7: =$R7*L7 -> 0 | AF7: =$R7*M7 -> 0 | AG7: =$R7*N7 -> 2539.155515 | AH7: =$R7*O7 -> 0 | AI7: =$R7*P7 -> 0 | AK7: =$S7*G7 -> 11096.2944 | AL7: =$S7*H7 -> 4421.619048 | AM7: =$S7*I7 -> 11734.9931 | AN7: =$S7*J7 -> 229.5 | AO7: =$S7*K7 -> 0 | AP7: =$S7*L7 -> 0 | AQ7: =$S7*M7 -> 0 | AR7: =$S7*N7 -> 1079.976816 | AS7: =$S7*O7 -> 0 | AT7: =$S7*P7 -> 0 | AV7: =$T7*G7 -> 0 | AW7: =$T7*H7 -> 0 | AX7: =$T7*I7 -> 0 | AY7: =$T7*J7 -> 0 | AZ7: =$T7*K7 -> 0 | BA7: =$T7*L7 -> 0 | BB7: =$T7*M7 -> 0 | BC7: =$T7*N7 -> 0 | BD7: =$T7*O7 -> 0 | BE7: =$T7*P7 -> 0 | BG7: =$U7*G7 -> 0 | BH7: =$U7*H7 -> 0 | BI7: =$U7*I7 -> 0 | BJ7: =$U7*J7 -> 0 | BK7: =$U7*K7 -> 0 | BL7: =$U7*L7 -> 0 | BM7: =$U7*M7 -> 0 | BN7: =$U7*N7 -> 0 | BO7: =$U7*O7 -> 0 | BP7: =$U7*P7 -> 0 | BR7: =$V7*G7 -> 0 | BS7: =$V7*H7 -> 0 | BT7: =$V7*I7 -> 0 | BU7: =$V7*J7 -> 0 | BV7: =$V7*K7 -> 0 | BW7: =$V7*L7 -> 0 | BX7: =$V7*M7 -> 0 | BY7: =$V7*N7 -> 0 | BZ7: =$V7*O7 -> 0 | CA7: =$V7*P7 -> 0 | CC7: =$W7*G7 -> 234782.9816 | CD7: =$W7*H7 -> 93555.63812 | CE7: =$W7*I7 -> 248297.0053 | CF7: =$W7*J7 -> 4855.91787 | CG7: =$W7*K7 -> 0 | CH7: =$W7*L7 -> 0 | CI7: =$W7*M7 -> 0 | CJ7: =$W7*N7 -> 22850.88767 | CK7: =$W7*O7 -> 0 | CL7: =$W7*P7 -> 0
B8: ='2019-2020'!B8 -> Phase 2b | C8: ='2019-2020'!C8 -> Unoccupied Trials | D8: ='2019-2020'!D8 -> Workstream 1 | G8: ='[2]OFgem Figures all'!$R$8 -> 528000 | H8: ='[2]OFgem Figures all'!$T$8 -> 473928.5714 | I8: ='[2]OFgem Figures all'!$S$8 -> 134665.92 | J8: ='[2]OFgem Figures all'!$U$8 -> 5625 | N8: ='[2]OFgem Figures all'!$V$8 -> 29087.68 | R8: ='2019-2020'!R7 -> 0.095925712 | S8: ='2019-2020'!S7 -> 0.0408 | W8: 0.9 | X8: =SUM(R8:W8) -> 1.036725712 | Z8: =$R8*G8 -> 50648.77594 | AA8: 45461.93565 | AB8: 12917.92426 | AC8: 539.58213 | AD8: 0 | AE8: 0 | AF8: 0 | AG8: 2790.256414 | AH8: 0 | AI8: 0 | AK8: =$S8*G8 -> 21542.4 | AL8: 19336.28571 | AM8: 5494.369536 | AN8: 229.5 | AO8: 0 | AP8: 0 | AQ8: 0 | AR8: 1186.777344 | AS8: 0 | AT8: 0 | AV8: =$T8*G8 -> 0 | AW8: 0 | AX8: 0 | AY8: 0 | AZ8: 0 | BA8: 0 | BB8: 0 | BC8: 0 | BD8: 0 | BE8: 0 | BG8: =$U8*G8 -> 0 | BH8: 0 | BI8: 0 | BJ8: 0 | BK8: 0 | BL8: 0 | BM8: 0 | BN8: 0 | BO8: 0 | BP8: 0 | BR8: =$V8*G8 -> 0 | BS8: 0 | BT8: 0 | BU8: 0 | BV8: 0 | BW8: 0 | BX8: 0 | BY8: 0 | BZ8: 0 | CA8: 0 | CC8: =$W8*G8 -> 475200 | CD8: 426535.7143 | CE8: 121199.328 | CF8: 5062.5 | CG8: 0 | CH8: 0 | CI8: 0 | CJ8: 26178.912 | CK8: 0 | CL8: 0
B9: ='2019-2020'!B9 -> Phase 2c | C9: ='2019-2020'!C9 -> Combining QRA | D9: ='2019-2020'!D9 -> Workstream 1 | G9: ='[2]OFgem Figures all'!$R$9 -> 15250 | H9: ='[2]OFgem Figures all'!$T$9 -> 0 | I9: ='[2]OFgem Figures all'!$S$9 -> 129045 | J9: ='[2]OFgem Figures all'!$U$9 -> 0 | N9: ='[2]OFgem Figures all'!$V$9 -> 0 | R9: 0.1 | W9: 0.9 | X9: =SUM(R9:W9) -> 1 | Z9: =$R9*G9 -> 1525 | AA9: =$R9*H9 -> 0 | AB9: 12904.5 | AC9: 0 | AD9: 0 | AE9: 0 | AF9: 0 | AG9: 0 | AH9: 0 | AI9: 0 | AK9: =$S9*G9 -> 0 | AL9: =$S9*H9 -> 0 | AM9: 0 | AN9: 0 | AO9: 0 | AP9: 0 | AQ9: 0 | AR9: 0 | AS9: 0 | AT9: 0 | AV9: =$T9*G9 -> 0 | AW9: =$T9*H9 -> 0 | AX9: 0 | AY9: 0 | AZ9: 0 | BA9: 0 | BB9: 0 | BC9: 0 | BD9: 0 | BE9: 0 | BG9: =$U9*G9 -> 0 | BH9: =$U9*H9 -> 0 | BI9: 0 | BJ9: 0 | BK9: 0 | BL9: 0 | BM9: 0 | BN9: 0 | BO9: 0 | BP9: 0 | BR9: =$V9*G9 -> 0 | BS9: =$V9*H9 -> 0 | BT9: 0 | BU9: 0 | BV9: 0 | BW9: 0 | BX9: 0 | BY9: 0 | BZ9: 0 | CA9: 0 | CC9: =$W9*G9 -> 13725 | CD9: =$W9*H9 -> 0 | CE9: 116140.5 | CF9: 0 | CG9: 0 | CH9: 0 | CI9: 0 | CJ9: 0 | CK9: 0 | CL9: 0
B10: ='2019-2020'!B10 -> Phase 2d | C10: ='2019-2020'!C10 -> Social Sciences | D10: ='2019-2020'!D10 -> Workstream 1 | G10: ='[2]OFgem Figures all'!$R$10 -> 15250 | H10: ='[2]OFgem Figures all'!$T$10 -> 0 | I10: ='[2]OFgem Figures all'!$S$10 -> 30000 | J10: ='[2]OFgem Figures all'!$U$10 -> 0 | N10: ='[2]OFgem Figures all'!$V$10 -> 0 | Q10: Total Cost | R10: 0.1 | W10: 0.9 | X10: =SUM(R10:W10) -> 1 | Z10: =$R10*G10 -> 1525 | AA10: 0 | AB10: 3000 | AC10: 0 | AD10: 0 | AE10: 0 | AF10: 0 | AG10: 0 | AH10: 0 | AI10: 0 | AK10: =$S10*G10 -> 0 | AL10: 0 | AM10: 0 | AN10: 0 | AO10: 0 | AP10: 0 | AQ10: 0 | AR10: 0 | AS10: 0 | AT10: 0 | AV10: =$T10*G10 -> 0 | AW10: 0 | AX10: 0 | AY10: 0 | AZ10: 0 | BA10: 0 | BB10: 0 | BC10: 0 | BD10: 0 | BE10: 0 | BG10: =$U10*G10 -> 0 | BH10: 0 | BI10: 0 | BJ10: 0 | BK10: 0 | BL10: 0 | BM10: 0 | BN10: 0 | BO10: 0 | BP10: 0 | BR10: =$V10*G10 -> 0 | BS10: 0 | BT10: 0 | BU10: 0 | BV10: 0 | BW10: 0 | BX10: 0 | BY10: 0 | BZ10: 0 | CA10: 0 | CC10: =$W10*G10 -> 13725 | CD10: 0 | CE10: 27000 | CF10: 0 | CG10: 0 | CH10: 0 | CI10: 0 | CJ10: 0 | CK10: 0 | CL10: 0
B11: Total | G11: =SUM(G7:G10) -> 830468 | H11: =SUM(H7:H10) -> 582301.5873 | I11: 581333.3 | J11: 11250 | K11: 0 | L11: 0 | M11: 0 | N11: 55557.7 | O11: 0 | P11: 0 | Q11: =SUM(G11:P11) -> 2060910.587 | Z11: =SUM(Z7:Z10) -> 79787.49998 | AA11: =SUM(AA7:AA10) -> 55857.69436 | AB11: 56412.80585 | AC11: 1079.16426 | AD11: 0 | AE11: 0 | AF11: 0 | AG11: 5329.41193 | AH11: 0 | AI11: 0 | AK11: =SUM(AK6:AK10) -> 32638.6944 | AL11: =SUM(AL6:AL10) -> 23757.90476 | AM11: 17229.36264 | AN11: 459 | AO11: 0 | AP11: 0 | AQ11: 0 | AR11: 2266.75416 | AS11: 0 | AT11: 0 | AV11: =SUM(AV9:AV10) -> 0 | AW11: =SUM(AW9:AW10) -> 0 | AX11: 0 | AY11: 0 | AZ11: 0 | BA11: 0 | BB11: 0 | BC11: 0 | BD11: 0 | BE11: 0 | BG11: =SUM(BG9:BG10) -> 0 | BH11: =SUM(BH9:BH10) -> 0 | BI11: 0 | BJ11: 0 | BK11: 0 | BL11: 0 | BM11: 0 | BN11: 0 | BO11: 0 | BP11: 0 | BR11: =SUM(BR9:BR10) -> 0 | BS11: =SUM(BS9:BS10) -> 0 | BT11: 0 | BU11: 0 | BV11: 0 | BW11: 0 | BX11: 0 | BY11: 0 | BZ11: 0 | CA11: 0 | CC11: =SUM(CC7:CC10) -> 737432.9816 | CD11: =SUM(CD7:CD10) -> 520091.3524 | CE11: 512636.8333 | CF11: 9918.41787 | CG11: 0 | CH11: 0 | CI11: 0 | CJ11: 49029.79967 | CK11: 0 | CL11: 0
D257: Totals

Sheet 2022-2023
B1: Project Costs in 2022-2023
G4: Total Cost £K | R4: Funding source % | Z4: Licensee Compulsory Contribution/Direct Benefits | AK4: Project Partner 1 | AV4: Project Partner 2 | BG4: Project Partner 3 | BR4: Licensee Extra Contribution | CC4: Outstanding Funding Required
G5: Labour | H5: Equipment | I5: Contractors | J5: IT | K5: IPR Costs | L5: Travel & Expenses | M5: Payments to users | N5: Contingency | O5: Decommissioning | P5: Other | R5: Licensee Compulsory Contribution /Direct Benefits | S5: Project Partner 1 | T5: Project Partner 2 | U5: Project Partner 3 | V5: Licensee Extra Contribution | W5: Oustanding Funding Required | X5: Total | Z5: Labour | AA5: Equipment | AB5: Contractors | AC5: IT | AD5: IPR Costs | AE5: Travel & Expenses | AF5: Payments to users | AG5: Contingency | AH5: Decommissioning | AI5: Other | AK5: Labour | AL5: Equipment | AM5: Contractors | AN5: IT | AO5: IPR Costs | AP5: Travel & Expenses | AQ5: Payments to users | AR5: Contingency | AS5: Decommissioning | AT5: Other | AV5: Labour | AW5: Equipment | AX5: Contractors | AY5: IT | AZ5: IPR Costs | BA5: Travel & Expenses | BB5: Payments to users | BC5: Contingency | BD5: Decommissioning | BE5: Other | BG5: Labour | BH5: Equipment | BI5: Contractors | BJ5: IT | BK5: IPR Costs | BL5: Travel & Expenses | BM5: Payments to users | BN5: Contingency | BO5: Decommissioning | BP5: Other | BR5: Labour | BS5: Equipment | BT5: Contractors | BU5: IT | BV5: IPR Costs | BW5: Travel & Expenses | BX5: Payments to users | BY5: Contingency | BZ5: Decommissioning | CA5: Other | CC5: Labour | CD5: Equipment | CE5: Contractors | CF5: IT | CG5: IPR Costs | CH5: Travel & Expenses | CI5: Payments to users | CJ5: Contingency | CK5: Decommissioning | CL5: Other
B6: Description | C6: Task | D6: Project Workstream
X7: =SUM(R7:W7) -> 0 | Z7: =$R7*G7 -> 0 | AA7: =$R7*H7 -> 0 | AB7: 0 | AC7: 0 | AD7: 0 | AE7: 0 | AF7: 0 | AG7: 0 | AH7: 0 | AI7: 0 | AK7: =$S7*G7 -> 0 | AL7: =$S7*H7 -> 0 | AM7: 0 | AN7: 0 | AO7: 0 | AP7: 0 | AQ7: 0 | AR7: 0 | AS7: 0 | AT7: 0 | AV7: =$T7*G7 -> 0 | AW7: =$T7*H7 -> 0 | AX7: 0 | AY7: 0 | AZ7: 0 | BA7: 0 | BB7: 0 | BC7: 0 | BD7: 0 | BE7: 0 | BG7: =$U7*G7 -> 0 | BH7: =$U7*H7 -> 0 | BI7: 0 | BJ7: 0 | BK7: 0 | BL7: 0 | BM7: 0 | BN7: 0 | BO7: 0 | BP7: 0 | BR7: =$V7*G7 -> 0 | BS7: =$V7*H7 -> 0 | BT7: 0 | BU7: 0 | BV7: 0 | BW7: 0 | BX7: 0 | BY7: 0 | BZ7: 0 | CA7: 0 | CC7: =$W7*G7 -> 0 | CD7: =$W7*H7 -> 0 | CE7: 0 | CF7: 0 | CG7: 0 | CH7: 0 | CI7: 0 | CJ7: 0 | CK7: 0 | CL7: 0
Q8: Total Cost | X8: =SUM(R8:W8) -> 0 | Z8: =$R8*G8 -> 0 | AA8: 0 | AB8: 0 | AC8: 0 | AD8: 0 | AE8: 0 | AF8: 0 | AG8: 0 | AH8: 0 | AI8: 0 | AK8: =$S8*G8 -> 0 | AL8: 0 | AM8: 0 | AN8: 0 | AO8: 0 | AP8: 0 | AQ8: 0 | AR8: 0 | AS8: 0 | AT8: 0 | AV8: =$T8*G8 -> 0 | AW8: 0 | AX8: 0 | AY8: 0 | AZ8: 0 | BA8: 0 | BB8: 0 | BC8: 0 | BD8: 0 | BE8: 0 | BG8: =$U8*G8 -> 0 | BH8: 0 | BI8: 0 | BJ8: 0 | BK8: 0 | BL8: 0 | BM8: 0 | BN8: 0 | BO8: 0 | BP8: 0 | BR8: =$V8*G8 -> 0 | BS8: 0 | BT8: 0 | BU8: 0 | BV8: 0 | BW8: 0 | BX8: 0 | BY8: 0 | BZ8: 0 | CA8: 0 | CC8: =$W8*G8 -> 0 | CD8: 0 | CE8: 0 | CF8: 0 | CG8: 0 | CH8: 0 | CI8: 0 | CJ8: 0 | CK8: 0 | CL8: 0
B9: Total | G9: =SUM(G7:G8) -> 0 | H9: =SUM(H7:H8) -> 0 | I9: 0 | J9: 0 | K9: 0 | L9: 0 | M9: 0 | N9: 0 | O9: 0 | P9: 0 | Q9: =SUM(G9:P9) -> 0 | Z9: =SUM(Z7:Z8) -> 0 | AA9: =SUM(AA7:AA8) -> 0 | AB9: 0 | AC9: 0 | AD9: 0 | AE9: 0 | AF9: 0 | AG9: 0 | AH9: 0 | AI9: 0 | AK9: =SUM(AK7:AK8) -> 0 | AL9: =SUM(AL7:AL8) -> 0 | AM9: 0 | AN9: 0 | AO9: 0 | AP9: 0 | AQ9: 0 | AR9: 0 | AS9: 0 | AT9: 0 | AV9: =SUM(AV7:AV8) -> 0 | AW9: =SUM(AW7:AW8) -> 0 | AX9: 0 | AY9: 0 | AZ9: 0 | BA9: 0 | BB9: 0 | BC9: 0 | BD9: 0 | BE9: 0 | BG9: =SUM(BG7:BG8) -> 0 | BH9: =SUM(BH7:BH8) -> 0 | BI9: 0 | BJ9: 0 | BK9: 0 | BL9: 0 | BM9: 0 | BN9: 0 | BO9: 0 | BP9: 0 | BR9: =SUM(BR7:BR8) -> 0 | BS9: =SUM(BS7:BS8) -> 0 | BT9: 0 | BU9: 0 | BV9: 0 | BW9: 0 | BX9: 0 | BY9: 0 | BZ9: 0 | CA9: 0 | CC9: =SUM(CC7:CC8) -> 0 | CD9: =SUM(CD7:CD8) -> 0 | CE9: 0 | CF9: 0 | CG9: 0 | CH9: 0 | CI9: 0 | CJ9: 0 | CK9: 0 | CL9: 0
D255: Totals

Sheet 2023-2024
B1: Project Costs in 2023-2024
G4: Total Cost £K | R4: Funding source % | Z4: Licensee Compulsory Contribution/Direct Benefits | AK4: Project Partner 1 | AV4: Project Partner 2 | BG4: Project Partner 3 | BR4: Licensee Extra Contribution | CC4: Outstanding Funding Required
G5: Labour | H5: Equipment | I5: Contractors | J5: IT | K5: IPR Costs | L5: Travel & Expenses | M5: Payments to users | N5: Contingency | O5: Decommissioning | P5: Other | R5: Licensee Compulsory Contribution /Direct Benefits | S5: Project Partner 1 | T5: Project Partner 2 | U5: Project Partner 3 | V5: Licensee Extra Contribution | W5: Oustanding Funding Required | X5: Total | Z5: Labour | AA5: Equipment | AB5: Contractors | AC5: IT | AD5: IPR Costs | AE5: Travel & Expenses | AF5: Payments to users | AG5: Contingency | AH5: Decommissioning | AI5: Other | AK5: Labour | AL5: Equipment | AM5: Contractors | AN5: IT | AO5: IPR Costs | AP5: Travel & Expenses | AQ5: Payments to users | AR5: Contingency | AS5: Decommissioning | AT5: Other | AV5: Labour | AW5: Equipment | AX5: Contractors | AY5: IT | AZ5: IPR Costs | BA5: Travel & Expenses | BB5: Payments to users | BC5: Contingency | BD5: Decommissioning | BE5: Other | BG5: Labour | BH5: Equipment | BI5: Contractors | BJ5: IT | BK5: IPR Costs | BL5: Travel & Expenses | BM5: Payments to users | BN5: Contingency | BO5: Decommissioning | BP5: Other | BR5: Labour | BS5: Equipment | BT5: Contractors | BU5: IT | BV5: IPR Costs | BW5: Travel & Expenses | BX5: Payments to users | BY5: Contingency | BZ5: Decommissioning | CA5: Other | CC5: Labour | CD5: Equipment | CE5: Contractors | CF5: IT | CG5: IPR Costs | CH5: Travel & Expenses | CI5: Payments to users | CJ5: Contingency | CK5: Decommissioning | CL5: Other
B6: Description | C6: Task | D6: Project Workstream
X7: =SUM(R7:W7) -> 0 | Z7: =$R7*G7 -> 0 | AA7: =$R7*H7 -> 0 | AB7: 0 | AC7: 0 | AD7: 0 | AE7: 0 | AF7: 0 | AG7: 0 | AH7: 0 | AI7: 0 | AK7: =$S7*G7 -> 0 | AL7: =$S7*H7 -> 0 | AM7: 0 | AN7: 0 | AO7: 0 | AP7: 0 | AQ7: 0 | AR7: 0 | AS7: 0 | AT7: 0 | AV7: =$T7*G7 -> 0 | AW7: =$T7*H7 -> 0 | AX7: 0 | AY7: 0 | AZ7: 0 | BA7: 0 | BB7: 0 | BC7: 0 | BD7: 0 | BE7: 0 | BG7: =$U7*G7 -> 0 | BH7: =$U7*H7 -> 0 | BI7: 0 | BJ7: 0 | BK7: 0 | BL7: 0 | BM7: 0 | BN7: 0 | BO7: 0 | BP7: 0 | BR7: =$V7*G7 -> 0 | BS7: =$V7*H7 -> 0 | BT7: 0 | BU7: 0 | BV7: 0 | BW7: 0 | BX7: 0 | BY7: 0 | BZ7: 0 | CA7: 0 | CC7: =$W7*G7 -> 0 | CD7: =$W7*H7 -> 0 | CE7: 0 | CF7: 0 | CG7: 0 | CH7: 0 | CI7: 0 | CJ7: 0 | CK7: 0 | CL7: 0
Q8: Total Cost | X8: =SUM(R8:W8) -> 0 | Z8: =$R8*G8 -> 0 | AA8: 0 | AB8: 0 | AC8: 0 | AD8: 0 | AE8: 0 | AF8: 0 | AG8: 0 | AH8: 0 | AI8: 0 | AK8: =$S8*G8 -> 0 | AL8: 0 | AM8: 0 | AN8: 0 | AO8: 0 | AP8: 0 | AQ8: 0 | AR8: 0 | AS8: 0 | AT8: 0 | AV8: =$T8*G8 -> 0 | AW8: 0 | AX8: 0 | AY8: 0 | AZ8: 0 | BA8: 0 | BB8: 0 | BC8: 0 | BD8: 0 | BE8: 0 | BG8: =$U8*G8 -> 0 | BH8: 0 | BI8: 0 | BJ8: 0 | BK8: 0 | BL8: 0 | BM8: 0 | BN8: 0 | BO8: 0 | BP8: 0 | BR8: =$V8*G8 -> 0 | BS8: 0 | BT8: 0 | BU8: 0 | BV8: 0 | BW8: 0 | BX8: 0 | BY8: 0 | BZ8: 0 | CA8: 0 | CC8: =$W8*G8 -> 0 | CD8: 0 | CE8: 0 | CF8: 0 | CG8: 0 | CH8: 0 | CI8: 0 | CJ8: 0 | CK8: 0 | CL8: 0
B9: Total | G9: =SUM(G7:G8) -> 0 | H9: =SUM(H7:H8) -> 0 | I9: 0 | J9: 0 | K9: 0 | L9: 0 | M9: 0 | N9: 0 | O9: 0 | P9: 0 | Q9: =SUM(G9:P9) -> 0 | Z9: =SUM(Z7:Z8) -> 0 | AA9: =SUM(AA7:AA8) -> 0 | AB9: 0 | AC9: 0 | AD9: 0 | AE9: 0 | AF9: 0 | AG9: 0 | AH9: 0 | AI9: 0 | AK9: =SUM(AK7:AK8) -> 0 | AL9: =SUM(AL7:AL8) -> 0 | AM9: 0 | AN9: 0 | AO9: 0 | AP9: 0 | AQ9: 0 | AR9: 0 | AS9: 0 | AT9: 0 | AV9: =SUM(AV7:AV8) -> 0 | AW9: =SUM(AW7:AW8) -> 0 | AX9: 0 | AY9: 0 | AZ9: 0 | BA9: 0 | BB9: 0 | BC9: 0 | BD9: 0 | BE9: 0 | BG9: =SUM(BG7:BG8) -> 0 | BH9: =SUM(BH7:BH8) -> 0 | BI9: 0 | BJ9: 0 | BK9: 0 | BL9: 0 | BM9: 0 | BN9: 0 | BO9: 0 | BP9: 0 | BR9: =SUM(BR7:BR8) -> 0 | BS9: =SUM(BS7:BS8) -> 0 | BT9: 0 | BU9: 0 | BV9: 0 | BW9: 0 | BX9: 0 | BY9: 0 | BZ9: 0 | CA9: 0 | CC9: =SUM(CC7:CC8) -> 0 | CD9: =SUM(CD7:CD8) -> 0 | CE9: 0 | CF9: 0 | CG9: 0 | CH9: 0 | CI9: 0 | CJ9: 0 | CK9: 0 | CL9: 0
D255: Totals

Sheet 2024-2025
B1: Project Costs in 2024-2025
G4: Total Cost £K | R4: Funding source % | Z4: Licensee Compulsory Contribution/Direct Benefits | AK4: Project Partner 1 | AV4: Project Partner 2 | BG4: Project Partner 3 | BR4: Licensee Extra Contribution | CC4: Outstanding Funding Required
G5: Labour | H5: Equipment | I5: Contractors | J5: IT | K5: IPR Costs | L5: Travel & Expenses | M5: Payments to users | N5: Contingency | O5: Decommissioning | P5: Other | R5: Licensee Compulsory Contribution /Direct Benefits | S5: Project Partner 1 | T5: Project Partner 2 | U5: Project Partner 3 | V5: Licensee Extra Contribution | W5: Oustanding Funding Required | X5: Total | Z5: Labour | AA5: Equipment | AB5: Contractors | AC5: IT | AD5: IPR Costs | AE5: Travel & Expenses | AF5: Payments to users | AG5: Contingency | AH5: Decommissioning | AI5: Other | AK5: Labour | AL5: Equipment | AM5: Contractors | AN5: IT | AO5: IPR Costs | AP5: Travel & Expenses | AQ5: Payments to users | AR5: Contingency | AS5: Decommissioning | AT5: Other | AV5: Labour | AW5: Equipment | AX5: Contractors | AY5: IT | AZ5: IPR Costs | BA5: Travel & Expenses | BB5: Payments to users | BC5: Contingency | BD5: Decommissioning | BE5: Other | BG5: Labour | BH5: Equipment | BI5: Contractors | BJ5: IT | BK5: IPR Costs | BL5: Travel & Expenses | BM5: Payments to users | BN5: Contingency | BO5: Decommissioning | BP5: Other | BR5: Labour | BS5: Equipment | BT5: Contractors | BU5: IT | BV5: IPR Costs | BW5: Travel & Expenses | BX5: Payments to users | BY5: Contingency | BZ5: Decommissioning | CA5: Other | CC5: Labour | CD5: Equipment | CE5: Contractors | CF5: IT | CG5: IPR Costs | CH5: Travel & Expenses | CI5: Payments to users | CJ5: Contingency | CK5: Decommissioning | CL5: Other
B6: Description | C6: Task | D6: Project Workstream
X7: =SUM(R7:W7) -> 0 | Z7: =$R7*G7 -> 0 | AA7: =$R7*H7 -> 0 | AB7: 0 | AC7: 0 | AD7: 0 | AE7: 0 | AF7: 0 | AG7: 0 | AH7: 0 | AI7: 0 | AK7: =$S7*G7 -> 0 | AL7: =$S7*H7 -> 0 | AM7: 0 | AN7: 0 | AO7: 0 | AP7: 0 | AQ7: 0 | AR7: 0 | AS7: 0 | AT7: 0 | AV7: =$T7*G7 -> 0 | AW7: =$T7*H7 -> 0 | AX7: 0 | AY7: 0 | AZ7: 0 | BA7: 0 | BB7: 0 | BC7: 0 | BD7: 0 | BE7: 0 | BG7: =$U7*G7 -> 0 | BH7: =$U7*H7 -> 0 | BI7: 0 | BJ7: 0 | BK7: 0 | BL7: 0 | BM7: 0 | BN7: 0 | BO7: 0 | BP7: 0 | BR7: =$V7*G7 -> 0 | BS7: =$V7*H7 -> 0 | BT7: 0 | BU7: 0 | BV7: 0 | BW7: 0 | BX7: 0 | BY7: 0 | BZ7: 0 | CA7: 0 | CC7: =$W7*G7 -> 0 | CD7: =$W7*H7 -> 0 | CE7: 0 | CF7: 0 | CG7: 0 | CH7: 0 | CI7: 0 | CJ7: 0 | CK7: 0 | CL7: 0
Q8: Total Cost | X8: =SUM(R8:W8) -> 0 | Z8: =$R8*G8 -> 0 | AA8: 0 | AB8: 0 | AC8: 0 | AD8: 0 | AE8: 0 | AF8: 0 | AG8: 0 | AH8: 0 | AI8: 0 | AK8: =$S8*G8 -> 0 | AL8: 0 | AM8: 0 | AN8: 0 | AO8: 0 | AP8: 0 | AQ8: 0 | AR8: 0 | AS8: 0 | AT8: 0 | AV8: =$T8*G8 -> 0 | AW8: 0 | AX8: 0 | AY8: 0 | AZ8: 0 | BA8: 0 | BB8: 0 | BC8: 0 | BD8: 0 | BE8: 0 | BG8: =$U8*G8 -> 0 | BH8: 0 | BI8: 0 | BJ8: 0 | BK8: 0 | BL8: 0 | BM8: 0 | BN8: 0 | BO8: 0 | BP8: 0 | BR8: =$V8*G8 -> 0 | BS8: 0 | BT8: 0 | BU8: 0 | BV8: 0 | BW8: 0 | BX8: 0 | BY8: 0 | BZ8: 0 | CA8: 0 | CC8: =$W8*G8 -> 0 | CD8: 0 | CE8: 0 | CF8: 0 | CG8: 0 | CH8: 0 | CI8: 0 | CJ8: 0 | CK8: 0 | CL8: 0
B9: Total | G9: =SUM(G7:G8) -> 0 | H9: =SUM(H7:H8) -> 0 | I9: 0 | J9: 0 | K9: 0 | L9: 0 | M9: 0 | N9: 0 | O9: 0 | P9: 0 | Q9: =SUM(G9:P9) -> 0 | Z9: =SUM(Z7:Z8) -> 0 | AA9: =SUM(AA7:AA8) -> 0 | AB9: 0 | AC9: 0 | AD9: 0 | AE9: 0 | AF9: 0 | AG9: 0 | AH9: 0 | AI9: 0 | AK9: =SUM(AK7:AK8) -> 0 | AL9: =SUM(AL7:AL8) -> 0 | AM9: 0 | AN9: 0 | AO9: 0 | AP9: 0 | AQ9: 0 | AR9: 0 | AS9: 0 | AT9: 0 | AV9: =SUM(AV7:AV8) -> 0 | AW9: =SUM(AW7:AW8) -> 0 | AX9: 0 | AY9: 0 | AZ9: 0 | BA9: 0 | BB9: 0 | BC9: 0 | BD9: 0 | BE9: 0 | BG9: =SUM(BG7:BG8) -> 0 | BH9: =SUM(BH7:BH8) -> 0 | BI9: 0 | BJ9: 0 | BK9: 0 | BL9: 0 | BM9: 0 | BN9: 0 | BO9: 0 | BP9: 0 | BR9: =SUM(BR7:BR8) -> 0 | BS9: =SUM(BS7:BS8) -> 0 | BT9: 0 | BU9: 0 | BV9: 0 | BW9: 0 | BX9: 0 | BY9: 0 | BZ9: 0 | CA9: 0 | CC9: =SUM(CC7:CC8) -> 0 | CD9: =SUM(CD7:CD8) -> 0 | CE9: 0 | CF9: 0 | CG9: 0 | CH9: 0 | CI9: 0 | CJ9: 0 | CK9: 0 | CL9: 0
D255: Totals

Sheet 2025-2026
B1: Project Costs in 2025-2026
G4: Total Cost £K | R4: Funding source % | Z4: Licensee Compulsory Contribution/Direct Benefits | AK4: Project Partner 1 | AV4: Project Partner 2 | BG4: Project Partner 3 | BR4: Licensee Extra Contribution | CC4: Outstanding Funding Required
G5: Labour | H5: Equipment | I5: Contractors | J5: IT | K5: IPR Costs | L5: Travel & Expenses | M5: Payments to users | N5: Contingency | O5: Decommissioning | P5: Other | R5: Licensee Compulsory Contribution /Direct Benefits | S5: Project Partner 1 | T5: Project Partner 2 | U5: Project Partner 3 | V5: Licensee Extra Contribution | W5: Oustanding Funding Required | X5: Total | Z5: Labour | AA5: Equipment | AB5: Contractors | AC5: IT | AD5: IPR Costs | AE5: Travel & Expenses | AF5: Payments to users | AG5: Contingency | AH5: Decommissioning | AI5: Other | AK5: Labour | AL5: Equipment | AM5: Contractors | AN5: IT | AO5: IPR Costs | AP5: Travel & Expenses | AQ5: Payments to users | AR5: Contingency | AS5: Decommissioning | AT5: Other | AV5: Labour | AW5: Equipment | AX5: Contractors | AY5: IT | AZ5: IPR Costs | BA5: Travel & Expenses | BB5: Payments to users | BC5: Contingency | BD5: Decommissioning | BE5: Other | BG5: Labour | BH5: Equipment | BI5: Contractors | BJ5: IT | BK5: IPR Costs | BL5: Travel & Expenses | BM5: Payments to users | BN5: Contingency | BO5: Decommissioning | BP5: Other | BR5: Labour | BS5: Equipment | BT5: Contractors | BU5: IT | BV5: IPR Costs | BW5: Travel & Expenses | BX5: Payments to users | BY5: Contingency | BZ5: Decommissioning | CA5: Other | CC5: Labour | CD5: Equipment | CE5: Contractors | CF5: IT | CG5: IPR Costs | CH5: Travel & Expenses | CI5: Payments to users | CJ5: Contingency | CK5: Decommissioning | CL5: Other
B6: Description | C6: Task | D6: Project Workstream
X7: =SUM(R7:W7) -> 0 | Z7: =$R7*G7 -> 0 | AA7: =$R7*H7 -> 0 | AB7: 0 | AC7: 0 | AD7: 0 | AE7: 0 | AF7: 0 | AG7: 0 | AH7: 0 | AI7: 0 | AK7: =$S7*G7 -> 0 | AL7: =$S7*H7 -> 0 | AM7: 0 | AN7: 0 | AO7: 0 | AP7: 0 | AQ7: 0 | AR7: 0 | AS7: 0 | AT7: 0 | AV7: =$T7*G7 -> 0 | AW7: =$T7*H7 -> 0 | AX7: 0 | AY7: 0 | AZ7: 0 | BA7: 0 | BB7: 0 | BC7: 0 | BD7: 0 | BE7: 0 | BG7: =$U7*G7 -> 0 | BH7: =$U7*H7 -> 0 | BI7: 0 | BJ7: 0 | BK7: 0 | BL7: 0 | BM7: 0 | BN7: 0 | BO7: 0 | BP7: 0 | BR7: =$V7*G7 -> 0 | BS7: =$V7*H7 -> 0 | BT7: 0 | BU7: 0 | BV7: 0 | BW7: 0 | BX7: 0 | BY7: 0 | BZ7: 0 | CA7: 0 | CC7: =$W7*G7 -> 0 | CD7: =$W7*H7 -> 0 | CE7: 0 | CF7: 0 | CG7: 0 | CH7: 0 | CI7: 0 | CJ7: 0 | CK7: 0 | CL7: 0
Q8: Total Cost | X8: =SUM(R8:W8) -> 0 | Z8: =$R8*G8 -> 0 | AA8: 0 | AB8: 0 | AC8: 0 | AD8: 0 | AE8: 0 | AF8: 0 | AG8: 0 | AH8: 0 | AI8: 0 | AK8: =$S8*G8 -> 0 | AL8: 0 | AM8: 0 | AN8: 0 | AO8: 0 | AP8: 0 | AQ8: 0 | AR8: 0 | AS8: 0 | AT8: 0 | AV8: =$T8*G8 -> 0 | AW8: 0 | AX8: 0 | AY8: 0 | AZ8: 0 | BA8: 0 | BB8: 0 | BC8: 0 | BD8: 0 | BE8: 0 | BG8: =$U8*G8 -> 0 | BH8: 0 | BI8: 0 | BJ8: 0 | BK8: 0 | BL8: 0 | BM8: 0 | BN8: 0 | BO8: 0 | BP8: 0 | BR8: =$V8*G8 -> 0 | BS8: 0 | BT8: 0 | BU8: 0 | BV8: 0 | BW8: 0 | BX8: 0 | BY8: 0 | BZ8: 0 | CA8: 0 | CC8: =$W8*G8 -> 0 | CD8: 0 | CE8: 0 | CF8: 0 | CG8: 0 | CH8: 0 | CI8: 0 | CJ8: 0 | CK8: 0 | CL8: 0
B9: Total | G9: =SUM(G7:G8) -> 0 | H9: =SUM(H7:H8) -> 0 | I9: 0 | J9: 0 | K9: 0 | L9: 0 | M9: 0 | N9: 0 | O9: 0 | P9: 0 | Q9: =SUM(G9:P9) -> 0 | Z9: =SUM(Z7:Z8) -> 0 | AA9: =SUM(AA7:AA8) -> 0 | AB9: 0 | AC9: 0 | AD9: 0 | AE9: 0 | AF9: 0 | AG9: 0 | AH9: 0 | AI9: 0 | AK9: =SUM(AK7:AK8) -> 0 | AL9: =SUM(AL7:AL8) -> 0 | AM9: 0 | AN9: 0 | AO9: 0 | AP9: 0 | AQ9: 0 | AR9: 0 | AS9: 0 | AT9: 0 | AV9: =SUM(AV7:AV8) -> 0 | AW9: =SUM(AW7:AW8) -> 0 | AX9: 0 | AY9: 0 | AZ9: 0 | BA9: 0 | BB9: 0 | BC9: 0 | BD9: 0 | BE9: 0 | BG9: =SUM(BG7:BG8) -> 0 | BH9: =SUM(BH7:BH8) -> 0 | BI9: 0 | BJ9: 0 | BK9: 0 | BL9: 0 | BM9: 0 | BN9: 0 | BO9: 0 | BP9: 0 | BR9: =SUM(BR7:BR8) -> 0 | BS9: =SUM(BS7:BS8) -> 0 | BT9: 0 | BU9: 0 | BV9: 0 | BW9: 0 | BX9: 0 | BY9: 0 | BZ9: 0 | CA9: 0 | CC9: =SUM(CC7:CC8) -> 0 | CD9: =SUM(CD7:CD8) -> 0 | CE9: 0 | CF9: 0 | CG9: 0 | CH9: 0 | CI9: 0 | CJ9: 0 | CK9: 0 | CL9: 0
D255: Totals

Sheet 2026-27
B1: Project Costs in 2026-27
G4: Total Cost £K | R4: Funding source % | Z4: Licensee Compulsory Contribution/Direct Benefits | AK4: Project Partner 1 | AV4: Project Partner 2 | BG4: Project Partner 3 | BR4: Licensee Extra Contribution | CC4: Outstanding Funding Required
G5: Labour | H5: Equipment | I5: Contractors | J5: IT | K5: IPR Costs | L5: Travel & Expenses | M5: Payments to users | N5: Contingency | O5: Decommissioning | P5: Other | R5: Licensee Compulsory Contribution /Direct Benefits | S5: Project Partner 1 | T5: Project Partner 2 | U5: Project Partner 3 | V5: Licensee Extra Contribution | W5: Oustanding Funding Required | X5: Total | Z5: Labour | AA5: Equipment | AB5: Contractors | AC5: IT | AD5: IPR Costs | AE5: Travel & Expenses | AF5: Payments to users | AG5: Contingency | AH5: Decommissioning | AI5: Other | AK5: Labour | AL5: Equipment | AM5: Contractors | AN5: IT | AO5: IPR Costs | AP5: Travel & Expenses | AQ5: Payments to users | AR5: Contingency | AS5: Decommissioning | AT5: Other | AV5: Labour | AW5: Equipment | AX5: Contractors | AY5: IT | AZ5: IPR Costs | BA5: Travel & Expenses | BB5: Payments to users | BC5: Contingency | BD5: Decommissioning | BE5: Other | BG5: Labour | BH5: Equipment | BI5: Contractors | BJ5: IT | BK5: IPR Costs | BL5: Travel & Expenses | BM5: Payments to users | BN5: Contingency | BO5: Decommissioning | BP5: Other | BR5: Labour | BS5: Equipment | BT5: Contractors | BU5: IT | BV5: IPR Costs | BW5: Travel & Expenses | BX5: Payments to users | BY5: Contingency | BZ5: Decommissioning | CA5: Other | CC5: Labour | CD5: Equipment | CE5: Contractors | CF5: IT | CG5: IPR Costs | CH5: Travel & Expenses | CI5: Payments to users | CJ5: Contingency | CK5: Decommissioning | CL5: Other
B6: Description | C6: Task | D6: Project Workstream
X7: =SUM(R7:W7) -> 0 | Z7: =$R7*G7 -> 0 | AA7: =$R7*H7 -> 0 | AB7: 0 | AC7: 0 | AD7: 0 | AE7: 0 | AF7: 0 | AG7: 0 | AH7: 0 | AI7: 0 | AK7: =$S7*G7 -> 0 | AL7: =$S7*H7 -> 0 | AM7: 0 | AN7: 0 | AO7: 0 | AP7: 0 | AQ7: 0 | AR7: 0 | AS7: 0 | AT7: 0 | AV7: =$T7*G7 -> 0 | AW7: =$T7*H7 -> 0 | AX7: 0 | AY7: 0 | AZ7: 0 | BA7: 0 | BB7: 0 | BC7: 0 | BD7: 0 | BE7: 0 | BG7: =$U7*G7 -> 0 | BH7: =$U7*H7 -> 0 | BI7: 0 | BJ7: 0 | BK7: 0 | BL7: 0 | BM7: 0 | BN7: 0 | BO7: 0 | BP7: 0 | BR7: =$V7*G7 -> 0 | BS7: =$V7*H7 -> 0 | BT7: 0 | BU7: 0 | BV7: 0 | BW7: 0 | BX7: 0 | BY7: 0 | BZ7: 0 | CA7: 0 | CC7: =$W7*G7 -> 0 | CD7: =$W7*H7 -> 0 | CE7: 0 | CF7: 0 | CG7: 0 | CH7: 0 | CI7: 0 | CJ7: 0 | CK7: 0 | CL7: 0
Q8: Total Cost | X8: =SUM(R8:W8) -> 0 | Z8: =$R8*G8 -> 0 | AA8: 0 | AB8: 0 | AC8: 0 | AD8: 0 | AE8: 0 | AF8: 0 | AG8: 0 | AH8: 0 | AI8: 0 | AK8: =$S8*G8 -> 0 | AL8: 0 | AM8: 0 | AN8: 0 | AO8: 0 | AP8: 0 | AQ8: 0 | AR8: 0 | AS8: 0 | AT8: 0 | AV8: =$T8*G8 -> 0 | AW8: 0 | AX8: 0 | AY8: 0 | AZ8: 0 | BA8: 0 | BB8: 0 | BC8: 0 | BD8: 0 | BE8: 0 | BG8: =$U8*G8 -> 0 | BH8: 0 | BI8: 0 | BJ8: 0 | BK8: 0 | BL8: 0 | BM8: 0 | BN8: 0 | BO8: 0 | BP8: 0 | BR8: =$V8*G8 -> 0 | BS8: 0 | BT8: 0 | BU8: 0 | BV8: 0 | BW8: 0 | BX8: 0 | BY8: 0 | BZ8: 0 | CA8: 0 | CC8: =$W8*G8 -> 0 | CD8: 0 | CE8: 0 | CF8: 0 | CG8: 0 | CH8: 0 | CI8: 0 | CJ8: 0 | CK8: 0 | CL8: 0
B9: Total | G9: =SUM(G7:G8) -> 0 | H9: =SUM(H7:H8) -> 0 | I9: 0 | J9: 0 | K9: 0 | L9: 0 | M9: 0 | N9: 0 | O9: 0 | P9: 0 | Q9: =SUM(G9:P9) -> 0 | Z9: =SUM(Z7:Z8) -> 0 | AA9: =SUM(AA7:AA8) -> 0 | AB9: 0 | AC9: 0 | AD9: 0 | AE9: 0 | AF9: 0 | AG9: 0 | AH9: 0 | AI9: 0 | AK9: =SUM(AK7:AK8) -> 0 | AL9: =SUM(AL7:AL8) -> 0 | AM9: 0 | AN9: 0 | AO9: 0 | AP9: 0 | AQ9: 0 | AR9: 0 | AS9: 0 | AT9: 0 | AV9: =SUM(AV7:AV8) -> 0 | AW9: =SUM(AW7:AW8) -> 0 | AX9: 0 | AY9: 0 | AZ9: 0 | BA9: 0 | BB9: 0 | BC9: 0 | BD9: 0 | BE9: 0 | BG9: =SUM(BG7:BG8) -> 0 | BH9: =SUM(BH7:BH8) -> 0 | BI9: 0 | BJ9: 0 | BK9: 0 | BL9: 0 | BM9: 0 | BN9: 0 | BO9: 0 | BP9: 0 | BR9: =SUM(BR7:BR8) -> 0 | BS9: =SUM(BS7:BS8) -> 0 | BT9: 0 | BU9: 0 | BV9: 0 | BW9: 0 | BX9: 0 | BY9: 0 | BZ9: 0 | CA9: 0 | CC9: =SUM(CC7:CC8) -> 0 | CD9: =SUM(CD7:CD8) -> 0 | CE9: 0 | CF9: 0 | CG9: 0 | CH9: 0 | CI9: 0 | CJ9: 0 | CK9: 0 | CL9: 0
D255: Totals

Sheet Whole project
B1: Whole Project
G4: Total Cost £K | R4: Funding source % | Z4: Licensee Compulsory Contribution/Direct Benefits | AK4: Project Partner 1 | AV4: Project Partner 2 | BG4: Project Partner 3 | BR4: Licensee Extra Contribution | CC4: Outstanding Funding Required
G5: Labour | H5: Equipment | I5: Contractors | J5: IT | K5: IPR Costs | L5: Travel & Expenses | M5: Payments to users | N5: Contingency | O5: Decommissioning | P5: Other | R5: Licensee Compulsory Contribution /Direct Benefits | S5: Project Partner 1 | T5: Project Partner 2 | U5: Project Partner 3 | V5: Licensee Extra Contribution | W5: Oustanding Funding Required | X5: Total | Z5: Labour | AA5: Equipment | AB5: Contractors | AC5: IT | AD5: IPR Costs | AE5: Travel & Expenses | AF5: Payments to users | AG5: Contingency | AH5: Decommissioning | AI5: Other | AK5: Labour | AL5: Equipment | AM5: Contractors | AN5: IT | AO5: IPR Costs | AP5: Travel & Expenses | AQ5: Payments to users | AR5: Contingency | AS5: Decommissioning | AT5: Other | AV5: Labour | AW5: Equipment | AX5: Contractors | AY5: IT | AZ5: IPR Costs | BA5: Travel & Expenses | BB5: Payments to users | BC5: Contingency | BD5: Decommissioning | BE5: Other | BG5: Labour | BH5: Equipment | BI5: Contractors | BJ5: IT | BK5: IPR Costs | BL5: Travel & Expenses | BM5: Payments to users | BN5: Contingency | BO5: Decommissioning | BP5: Other | BR5: Labour | BS5: Equipment | BT5: Contractors | BU5: IT | BV5: IPR Costs | BW5: Travel & Expenses | BX5: Payments to users | BY5: Contingency | BZ5: Decommissioning | CA5: Other | CC5: Labour | CD5: Equipment | CE5: Contractors | CF5: IT | CG5: IPR Costs | CH5: Travel & Expenses | CI5: Payments to users | CJ5: Contingency | CK5: Decommissioning | CL5: Other
B6: Description | C6: Task | D6: Project Workstream
G7: ='2019-2020'!G10+'2020-2021'!G9+'2021-2022'!G9+'2022-2023'!G7+'2023-2024'!G7+'2024-2025'!G7+'2025-2026'!G7+'2026-27'!G7 -> 32010 | H7: ='2019-2020'!H10+'2020-2021'!H9+'2021-2022'!H9+'2022-2023'!H7+'2023-2024'!H7+'2024-2025'!H7+'2025-2026'!H7+'2026-27'!H7 -> 0 | I7: ='2019-2020'!I10+'2020-2021'!I9+'2021-2022'!I9+'2022-2023'!I7+'2023-2024'!I7+'2024-2025'!I7+'2025-2026'!I7+'2026-27'!I7 -> 278303 | J7: ='2019-2020'!J10+'2020-2021'!J9+'2021-2022'!J9+'2022-2023'!J7+'2023-2024'!J7+'2024-2025'!J7+'2025-2026'!J7+'2026-27'!J7 -> 0 | K7: ='2019-2020'!K10+'2020-2021'!K9+'2021-2022'!K9+'2022-2023'!K7+'2023-2024'!K7+'2024-2025'!K7+'2025-2026'!K7+'2026-27'!K7 -> 0 | L7: ='2019-2020'!L10+'2020-2021'!L9+'2021-2022'!L9+'2022-2023'!L7+'2023-2024'!L7+'2024-2025'!L7+'2025-2026'!L7+'2026-27'!L7 -> 0 | M7: ='2019-2020'!M10+'2020-2021'!M9+'2021-2022'!M9+'2022-2023'!M7+'2023-2024'!M7+'2024-2025'!M7+'2025-2026'!M7+'2026-27'!M7 -> 0 | N7: ='2019-2020'!N10+'2020-2021'!N9+'2021-2022'!N9+'2022-2023'!N7+'2023-2024'!N7+'2024-2025'!N7+'2025-2026'!N7+'2026-27'!N7 -> 0 | O7: ='2019-2020'!O10+'2020-2021'!O9+'2021-2022'!O9+'2022-2023'!O7+'2023-2024'!O7+'2024-2025'!O7+'2025-2026'!O7+'2026-27'!O7 -> 0 | P7: ='2019-2020'!P10+'2020-2021'!P9+'2021-2022'!P9+'2022-2023'!P7+'2023-2024'!P7+'2024-2025'!P7+'2025-2026'!P7+'2026-27'!P7 -> 0 | X7: =SUM(R7:W7) -> 0 | Z7: =$R7*G7 -> 0 | AA7: =$R7*H7 -> 0 | AB7: 0 | AC7: 0 | AD7: 0 | AE7: 0 | AF7: 0 | AG7: 0 | AH7: 0 | AI7: 0 | AK7: =$S7*G7 -> 0 | AL7: =$S7*H7 -> 0 | AM7: 0 | AN7: 0 | AO7: 0 | AP7: 0 | AQ7: 0 | AR7: 0 | AS7: 0 | AT7: 0 | AV7: =$T7*G7 -> 0 | AW7: =$T7*H7 -> 0 | AX7: 0 | AY7: 0 | AZ7: 0 | BA7: 0 | BB7: 0 | BC7: 0 | BD7: 0 | BE7: 0 | BG7: =$U7*G7 -> 0 | BH7: =$U7*H7 -> 0 | BI7: 0 | BJ7: 0 | BK7: 0 | BL7: 0 | BM7: 0 | BN7: 0 | BO7: 0 | BP7: 0 | BR7: =$V7*G7 -> 0 | BS7: =$V7*H7 -> 0 | BT7: 0 | BU7: 0 | BV7: 0 | BW7: 0 | BX7: 0 | BY7: 0 | BZ7: 0 | CA7: 0 | CC7: =$W7*G7 -> 0 | CD7: =$W7*H7 -> 0 | CE7: 0 | CF7: 0 | CG7: 0 | CH7: 0 | CI7: 0 | CJ7: 0 | CK7: 0 | CL7: 0
G8: ='2019-2020'!G11+'2020-2021'!G10+'2021-2022'!G10+'2022-2023'!G8+'2023-2024'!G8+'2024-2025'!G8+'2025-2026'!G8+'2026-27'!G8 -> 31660 | H8: ='2019-2020'!H11+'2020-2021'!H10+'2021-2022'!H10+'2022-2023'!H8+'2023-2024'!H8+'2024-2025'!H8+'2025-2026'!H8+'2026-27'!H8 -> 0 | I8: ='2019-2020'!I11+'2020-2021'!I10+'2021-2022'!I10+'2022-2023'!I8+'2023-2024'!I8+'2024-2025'!I8+'2025-2026'!I8+'2026-27'!I8 -> 102000 | J8: ='2019-2020'!J11+'2020-2021'!J10+'2021-2022'!J10+'2022-2023'!J8+'2023-2024'!J8+'2024-2025'!J8+'2025-2026'!J8+'2026-27'!J8 -> 0 | K8: ='2019-2020'!K11+'2020-2021'!K10+'2021-2022'!K10+'2022-2023'!K8+'2023-2024'!K8+'2024-2025'!K8+'2025-2026'!K8+'2026-27'!K8 -> 0 | L8: ='2019-2020'!L11+'2020-2021'!L10+'2021-2022'!L10+'2022-2023'!L8+'2023-2024'!L8+'2024-2025'!L8+'2025-2026'!L8+'2026-27'!L8 -> 0 | M8: ='2019-2020'!M11+'2020-2021'!M10+'2021-2022'!M10+'2022-2023'!M8+'2023-2024'!M8+'2024-2025'!M8+'2025-2026'!M8+'2026-27'!M8 -> 0 | N8: ='2019-2020'!N11+'2020-2021'!N10+'2021-2022'!N10+'2022-2023'!N8+'2023-2024'!N8+'2024-2025'!N8+'2025-2026'!N8+'2026-27'!N8 -> 0 | O8: ='2019-2020'!O11+'2020-2021'!O10+'2021-2022'!O10+'2022-2023'!O8+'2023-2024'!O8+'2024-2025'!O8+'2025-2026'!O8+'2026-27'!O8 -> 0 | P8: ='2019-2020'!P11+'2020-2021'!P10+'2021-2022'!P10+'2022-2023'!P8+'2023-2024'!P8+'2024-2025'!P8+'2025-2026'!P8+'2026-27'!P8 -> 0 | Q8: Total Cost | X8: =SUM(R8:W8) -> 0 | Z8: =$R8*G8 -> 0 | AA8: 0 | AB8: 0 | AC8: 0 | AD8: 0 | AE8: 0 | AF8: 0 | AG8: 0 | AH8: 0 | AI8: 0 | AK8: =$S8*G8 -> 0 | AL8: 0 | AM8: 0 | AN8: 0 | AO8: 0 | AP8: 0 | AQ8: 0 | AR8: 0 | AS8: 0 | AT8: 0 | AV8: =$T8*G8 -> 0 | AW8: 0 | AX8: 0 | AY8: 0 | AZ8: 0 | BA8: 0 | BB8: 0 | BC8: 0 | BD8: 0 | BE8: 0 | BG8: =$U8*G8 -> 0 | BH8: 0 | BI8: 0 | BJ8: 0 | BK8: 0 | BL8: 0 | BM8: 0 | BN8: 0 | BO8: 0 | BP8: 0 | BR8: =$V8*G8 -> 0 | BS8: 0 | BT8: 0 | BU8: 0 | BV8: 0 | BW8: 0 | BX8: 0 | BY8: 0 | BZ8: 0 | CA8: 0 | CC8: =$W8*G8 -> 0 | CD8: 0 | CE8: 0 | CF8: 0 | CG8: 0 | CH8: 0 | CI8: 0 | CJ8: 0 | CK8: 0 | CL8: 0
B9: Total | G9: =SUM(G7:G8) -> 63670 | H9: =SUM(H7:H8) -> 0 | I9: 380303 | J9: 0 | K9: 0 | L9: 0 | M9: 0 | N9: 0 | O9: 0 | P9: 0 | Q9: =SUM(G9:P9) -> 443973 | Z9: =SUM(Z7:Z8) -> 0 | AA9: =SUM(AA7:AA8) -> 0 | AB9: 0 | AC9: 0 | AD9: 0 | AE9: 0 | AF9: 0 | AG9: 0 | AH9: 0 | AI9: 0 | AK9: =SUM(AK7:AK8) -> 0 | AL9: =SUM(AL7:AL8) -> 0 | AM9: 0 | AN9: 0 | AO9: 0 | AP9: 0 | AQ9: 0 | AR9: 0 | AS9: 0 | AT9: 0 | AV9: =SUM(AV7:AV8) -> 0 | AW9: =SUM(AW7:AW8) -> 0 | AX9: 0 | AY9: 0 | AZ9: 0 | BA9: 0 | BB9: 0 | BC9: 0 | BD9: 0 | BE9: 0 | BG9: =SUM(BG7:BG8) -> 0 | BH9: =SUM(BH7:BH8) -> 0 | BI9: 0 | BJ9: 0 | BK9: 0 | BL9: 0 | BM9: 0 | BN9: 0 | BO9: 0 | BP9: 0 | BR9: =SUM(BR7:BR8) -> 0 | BS9: =SUM(BS7:BS8) -> 0 | BT9: 0 | BU9: 0 | BV9: 0 | BW9: 0 | BX9: 0 | BY9: 0 | BZ9: 0 | CA9: 0 | CC9: =SUM(CC7:CC8) -> 0 | CD9: =SUM(CD7:CD8) -> 0 | CE9: 0 | CF9: 0 | CG9: 0 | CH9: 0 | CI9: 0 | CJ9: 0 | CK9: 0 | CL9: 0
D255: Totals

Sheet Project Direction
C4: Cost Category | D4: Cost
C5: Labour
D6: ='Whole project'!CC9+'Whole project'!Z9+'Whole project'!BR9 -> 0
C7: Equipment
D8: ='Whole project'!CD9+'Whole project'!AA9+'Whole project'!BS9 -> 0
C9: Contractors
D10: ='Whole project'!CE9+'Whole project'!AB9+'Whole project'!BT9 -> 0
C11: IT
D12: ='Whole project'!CF9+'Whole project'!AC9+'Whole project'!BU9 -> 0
C13: IPR Costs
D14: ='Whole project'!CG9+'Whole project'!AD9+'Whole project'!BV9 -> 0
C15: Travel & Expenses
D16: ='Whole project'!CH9+'Whole project'!AE9+'Whole project'!BW9 -> 0
C17: Payments to users
D18: ='Whole project'!CI9+'Whole project'!AF9+'Whole project'!BX9 -> 0
C19: Contingency
D20: ='Whole project'!CJ9+'Whole project'!AG9+'Whole project'!BY9 -> 0
C21: Decommissioning
D22: ='Whole project'!CK9+'Whole project'!AH9+'Whole project'!BZ9 -> 0
C23: Other
D24: ='Whole project'!CL9+'Whole project'!AI9+'Whole project'!CA9 -> 0 | E24: Check that = to Total Outstanding Funding Required + Licensee Compulsory Contribution + Licensee Extra Contribution
C25: Total | D25: =SUM(D6:D24) -> 0 | E25: =IF(D25=('NIC Funding Request'!K79+'NIC Funding Request'!K37+'NIC Funding Request'!K66),"OK", "ERROR") -> ERROR
